Workbook

Sheet AER only (hidden)
B1: Data in these columns used for data validation and database purposes.
B2: Date last modified:
B3: 14 April 2015 | C3: merged cell C46/47
B4: 17 April 2015 | C4: adjusted dms_RYE to automate based on dms_Model (NB: EB & CA refer to CRCP_y5)
B5: 14 May 2015 | C5: adapted this cover for use in CA & EB RINs
B6: October 2015 | C6: added full Trading Name for worksheet headings
C7: added new formulas for distinguishing RYE for RFM vs PTRM and Reset (set by ref to CRCP or FRCP) and EB & CA (set by ref to CRY)
B11: dms_TradingName_List | C11: dms_TradingNameFull_List | D11: dms_ABN_List | E11: dms_JurisdictionList | F11: dms_Sector_List | G11: dms_Segment_List | H11: dms_FormControl_List | I11: dms_RPT_List | J11: dms_RPTMonth_List | K11: dms_CRCPlength_List | L11: dms_FRCPlength_List | M11: dms_663_List | N11: dms_DeterminationRef_List | R11: dms_Addr1_List | S11: dms_Addr2_List | T11: dms_Suburb_List | U11: dms_State_List | V11: dms_PostCode_List | W11: dms_PAddr1_List | X11: dms_PAddr2_List | Y11: dms_PSuburb_List | Z11: dms_PState_List | AA11: dms_PPostCode_List | AB11: dms_ContactName1_List | AC11: dms_ContactPh1_List | AD11: dms_ContactEmail_List
B12: ActewAGL Distribution | C12: ActewAGL Distribution | D12: 76670568688 | E12: ACT | F12: Electricity | G12: Distribution | H12: Revenue cap | I12: Calendar | J12: December | K12: 5 | L12: 5 | M12: 5 | N12: 2014-19 Distribution Determination | R12: 40 Bunda Street | T12: CANBERRA | U12: ACT | V12: 2601 | W12: GPO BOX 366 | Y12: CANBERRA | Z12: ACT | AA12: 2601 | AB12: Robert Walker | AC12: 02 6248 3847 | AD12: robert.walker@actewagle.com.au
B13: ActewAGL Distribution (Tx Assets) | C13: ActewAGL Distribution (Tx Assets) | D13: 76670568688 | E13: ACT | F13: Electricity | G13: Distribution | H13: Revenue cap | I13: Calendar | J13: December | K13: 5 | L13: 5 | M13: 5 | N13: distribution determination | U13: ACT
B14: AGN | C14: AGN | D14: 78551685 | E14: SA | F14: Gas | G14: Distribution | H14: Revenue cap | I14: Financial | J14: June | K14: 5 | L14: 5 | M14: 5 | N14: distribution determination | U14: SA
B15: Ausgrid | C15: Ausgrid | D15: 67505337385 | E15: NSW | F15: Electricity | G15: Distribution | H15: Revenue cap | I15: Financial | J15: June | K15: 5 | L15: 5 | M15: 5 | N15: 2014-19 Distribution Determination | R15: 570 George St | T15: SYDNEY | U15: NSW | V15: 2000 | AB15: John Thomson | AC15: (02) 9269 2312 | AD15: john.thomson@ausgrid.com.au
B16: Ausgrid (Tx Assets) | C16: Ausgrid (Tx Assets) | D16: 67505337385 | E16: NSW | F16: Electricity | G16: Distribution | H16: Revenue cap | I16: Financial | J16: June | K16: 5 | L16: 5 | M16: 5 | N16: distribution determination | U16: NSW
B17: AusNet (D) | C17: AusNet Services (D) | D17: 91064651118 | E17: Vic | F17: Electricity | G17: Distribution | H17: Revenue cap | I17: Calendar | J17: December | K17: 5 | L17: 5 | M17: 2 | N17: 2016-20 Distribution Determination | R17: Level 32 | S17: 2 Southbank Boulevard | T17: SOUTHBANK | U17: Vic | V17: 3006 | W17: Locked Bag 14051 | Y17: MELBOURNE CITY MAIL CENTRE | Z17: VIC | AB17: Tom Hallam | AC17: 03 9695 6617 | AD17: Thomas.hallam@SP-Ausnet.com.au
B18: AusNet (T) | C18: AusNet (T) | D18: 48116124362 | E18: Vic | F18: Electricity | G18: Transmission | H18: Revenue cap | I18: Financial | J18: March | K18: 5 | L18: 5 | M18: 2 | N18: transmission determination | R18: Level 32 | S18: 2 Southbank Boulevard | T18: SOUTHBANK | U18: Vic | V18: 3006 | AB18: Tom Hallam | AC18: 03 9695 6617 | AD18: Thomas.hallam@SP-Ausnet.com.au
B19: Australian Distribution Co. | C19: Australian Distribution Co. | D19: 11222333444 | E19: - | F19: Electricity | G19: Distribution | H19: Revenue cap | I19: Financial | J19: June | K19: 5 | L19: 5 | M19: 2 | N19: distribution determination | U19: -
B20: Australian Transmission Co. | C20: Australian Transmission Co. | D20: 11222333444 | E20: - | F20: Electricity | G20: Transmission | H20: Revenue cap | I20: Financial | J20: June | K20: 5 | L20: 5 | M20: 5 | N20: transmission determination | U20: -
B21: CitiPower | C21: CitiPower | D21: 76064651056 | E21: Vic | F21: Electricity | G21: Distribution | H21: Revenue cap | I21: Calendar | J21: December | K21: 5 | L21: 5 | M21: 2 | N21: 2016-20 Distribution Determination | R21: 40 Market Street | T21: MELBOURNE | U21: Vic | V21: 3000 | W21: Locked Bag 14090 | Y21: MELBOURNE | Z21: VIC | AB21: Hannah Williams | AC21: 03 9683 4088 | AD21: hwilliams@powercor.com.au
B22: Directlink | C22: Directlink | D22: 16779340889 | E22: Qld | F22: Electricity | G22: Transmission | H22: Revenue cap | I22: Financial | J22: June | K22: 10 | L22: 5 | M22: 5 | N22: transmission determination | U22: NSW
B23: ElectraNet | C23: ElectraNet | D23: 41094482416 | E23: SA | F23: Electricity | G23: Transmission | H23: Revenue cap | I23: Financial | J23: June | K23: 5 | L23: 5 | M23: 5 | N23: transmission determination | R23: 52-55 East Terrace | S23: Rymill Park | T23: ADELAIDE | U23: SA | V23: 5000 | W23: PO Box 7096 | X23: Hutt Street Post Office | Y23: ADELAIDE | Z23: SA | AB23: Bill Jackson | AC23: 08 8404 7969 | AD23: jackson.bill@electranet.com.au
B24: Endeavour Energy | C24: Endeavour Energy | D24: 59253130878 | E24: NSW | F24: Electricity | G24: Distribution | H24: Revenue cap | I24: Financial | J24: June | K24: 5 | L24: 5 | M24: 5 | N24: 2014-19 Distribution Determination | R24: 51 Huntingwood Drive | T24: HUNTINGWOOD | U24: NSW | V24: 2148 | W24: PO Box 811 | Y24: SEVEN HILLS | Z24: NSW | AB24: Jon Hocking | AC24: 02 9853 4386 / 0407 348 156 | AD24: Jon.Hocking@Endeavourenergy.com.au
B25: Energex | C25: Energex | D25: 40078849055 | E25: Qld | F25: Electricity | G25: Distribution | H25: Revenue cap | I25: Financial | J25: June | K25: 5 | L25: 5 | M25: 5 | N25: 2015-20 Distribution Determination | R25: 26 Reddacliff Street | T25: NEWSTEAD | U25: Qld | V25: 4006 | W25: 26 Reddacliff Street | Y25: NEWSTEAD | Z25: QLD | AA25: 4006 | AB25: Nicola Roscoe | AC25: 07 3664 5891 | AD25: nicolaroscoe@energex.com.au
B26: Ergon Energy | C26: Ergon Energy | D26: 50087646062 | E26: Qld | F26: Electricity | G26: Distribution | H26: Revenue cap | I26: Financial | J26: June | K26: 5 | L26: 5 | M26: 5 | N26: 2015-20 Distribution Determination | R26: 22 Walker Street | T26: TOWNSVILLE | U26: Qld | V26: 4810 | AB26: Jenny Doyle, Group Manager Regulatory Affairs | AC26: (07) 3851 6416 | AD26: jenny.doyle@ergon.com.au
B27: Essential Energy | C27: Essential Energy | D27: 37428185226 | E27: NSW | F27: Electricity | G27: Distribution | H27: Revenue cap | I27: Financial | J27: June | K27: 5 | L27: 5 | M27: 5 | N27: 2014-19 Distribution Determination | R27: 8 Buller Street | T27: PORT MACQUARIE | U27: NSW | V27: 2444 | W27: PO Box 5730 | Y27: Port MacQuarie | Z27: NSW | AB27: Catherine Waddell | AC27: 02 6338 3553 | AD27: Catherine.waddell@essentialenergy.com.au
B28: Jemena Electricity | C28: Jemena Electricity | D28: 82064651083 | E28: Vic | F28: Electricity | G28: Distribution | H28: Revenue cap | I28: Calendar | J28: December | K28: 5 | L28: 5 | M28: 2 | N28: 2016-20 Distribution Determination | R28: 321 Ferntree Gully Road | T28: MT WAVERLEY | U28: Vic | V28: 3149 | W28: 321 Ferntree Gully Road | Y28: MT WAVERLEY | Z28: VIC | AA28: 3149 | AB28: Anton Murashev | AC28: 03 8544 9036 | AD28: anton.murashev@jemena.com.au
B29: Murraylink | C29: Murraylink | D29: 79181207909 | E29: SA | F29: Electricity | G29: Transmission | H29: Revenue cap | I29: Financial | J29: June | K29: 5 | L29: 5 | M29: 5 | N29: transmission determination | U29: NSW
B30: Powercor Australia | C30: Powercor Australia | D30: 89064651109 | E30: Vic | F30: Electricity | G30: Distribution | H30: Revenue cap | I30: Calendar | J30: December | K30: 5 | L30: 5 | M30: 2 | N30: 2016-20 Distribution Determination | R30: 40 Market Street | T30: MELBOURNE | U30: Vic | V30: 3000 | W30: Locked bag 14090 | Y30: MELBOURNE | Z30: VIC | AA30: 3001 | AB30: Hannah Williams | AC30: 03 9683 4088 | AD30: hwilliams@powercor.com.au
B31: Powerlink | C31: Queensland Electricity Transmission Corporation Limited trading as Powerlink Queensland | D31: 82078849233 | E31: Qld | F31: Electricity | G31: Transmission | H31: Revenue cap | I31: Financial | J31: June | K31: 5 | L31: 5 | M31: 5 | N31: transmission determination | R31: 33 Harold St | T31: VIRGINIA | U31: Qld | V31: 4014 | W31: PO Box 1193 | Y31: VIRGINIA | Z31: QLD | AA31: 4014 | AB31: Jennifer Harris | AC31: 07 3860 2667 | AD31: jharris@powerlink.com.au
B32: Qld,SA &ACT Gas Reset | C32: Qld,SA &ACT Gas Reset | D32: 22222222222 | E32: - | F32: Gas | G32: Distribution | H32: ? | K32: 5 | L32: 5 | M32: x | N32: n/a | U32: -
B33: Roma to Brisbane Pipeline | C33: APT Petroleum Pipelines Limited t/a Roma to Brisbane Pipeline | D33: 009 737 393 | E33: Qld | F33: Gas | G33: Distribution | H33: ? | I33: Financial | J33: June | K33: 5 | L33: 5 | M33: x | N33: n/a
B34: SA Power Networks | C34: SA Power Networks | D34: 13332330749 | E34: SA | F34: Electricity | G34: Distribution | H34: Revenue cap | I34: Financial | J34: June | K34: 5 | L34: 5 | M34: 5 | N34: 2015-20 Distribution Determination | R34: 1 Anzac Highway | T34: KESWICK | U34: SA | V34: 5035 | W34: GPO Box 77 | Y34: ADELAIDE | Z34: SA | AB34: Damien O'Connor | AC34: 08 8404 5066 | AD34: damien.oconnor@sapowernetworks.com.au
B35: TasNetworks (D) | C35: TasNetworks (D) | D35: 24167357299 | E35: Tas | F35: Electricity | G35: Distribution | H35: Revenue cap | I35: Financial | J35: June | K35: 5 | L35: 5 | M35: 5 | N35: distribution determination | R35: 21 Kirksway Place | T35: HOBART | U35: Tas | V35: 7000 | W35: GPO Box 191 | Y35: HOBART | Z35: Tas | AB35: Leigh Mayne | AC35: 03 6270 3691 | AD35: rrp2012@auroraenergy.com.au
B36: TasNetworks (T) | C36: TasNetworks (T) | D36: 24167357299 | E36: Tas | F36: Electricity | G36: Transmission | H36: Revenue cap | I36: Financial | J36: March | K36: 5 | L36: 5 | M36: 5 | N36: transmission determination | R36: 1-7 Maria Street | T36: LENAH VALLEY | U36: Tas | V36: 7008 | W36: PO Box 606 | Y36: MOONAH | Z36: Tas | AB36: Heath Dillon | AC36: 03 6274 3664 | AD36: heath.dillon@transend.com.au
B37: TransGrid | C37: TransGrid | D37: 19622755774 | E37: NSW | F37: Electricity | G37: Transmission | H37: Revenue cap | I37: Financial | J37: June | K37: 5 | L37: 5 | M37: 5 | N37: transmission determination | R37: 180 Thomas Street | T37: HAYMARKET | U37: NSW | V37: 2000 | W37: PO Box A1000 | Y37: SYDNEY SOUTH | Z37: NSW | AB37: Andrew Kingsmill | AC37: 02 9284 3149 | AD37: andrew.kingsmill@transgrid.com.au
B38: United Energy | C38: United Energy | D38: 70064651029 | E38: Vic | F38: Electricity | G38: Distribution | H38: Revenue cap | I38: Calendar | J38: December | K38: 5 | L38: 5 | M38: 2 | N38: 2016-20 Distribution Determination | R38: 6 Nexus Court | T38: MULGRAVE | U38: Vic | V38: 3170 | W38: PO Box 449 | Y38: MOUNT WAVERLEY | Z38: VIC | AB38: Mathew Abraham | AC38: 03 8846 9758 | AD38: mathew.abraham@ue.com.au
B39: Victorian DNSP Backcasting | C39: Victorian DNSP Backcasting | D39: 33333333666 | E39: Vic | F39: Electricity | G39: Distribution | H39: ? | I39: Calendar | K39: 5 | L39: 5 | M39: x | N39: distribution determination | U39: Vic
B40: Victorian DNSP Reset | C40: Victorian DNSP Reset | D40: 33333333333 | E40: Vic | F40: Electricity | G40: Distribution | H40: ? | I40: Calendar | K40: 5 | L40: 5 | M40: x | N40: distribution determination | U40: Vic
B41: Western Power (D) | C41: Western Power (D) | D41: 18540492861 | E41: WA | F41: Electricity | G41: Distribution | H41: Revenue cap | I41: Financial | J41: June | K41: 5 | L41: 4 | M41: x | N41: distribution determination | U41: WA | AB41: Judy Hunter | AC41: 08 9326 6239
B42: Western Power (T) | C42: Western Power (T) | D42: 18540492861 | E42: WA | F42: Electricity | G42: Transmission | H42: Revenue cap | I42: Financial | J42: June | K42: 5 | L42: 4 | M42: x | N42: transmission determination | U42: WA | AB42: Judy Hunter | AC42: 08 9326 6239
B47: dms_Model_List | C47: DELETE NR 'CRY' IF NOT AN ANNUAL RIN (EB, CA , ARR) | E47: dms_RYE_Formula_Result | N47: dms_0203_ProjectType | R47: dms_020303_01_UOM | S47: dms_020501_01_UOM | T47: dms_020501_02_UOM | U47: dms_020501_03_UOM | V47: dms_020501_04_UOM | W47: dms_020603_01_UOM | X47: dms_040102_01_UOM | Y47: dms_040102_04_UOM
B48: ARR | C48: ANNUAL REPORTING STATEMENT | E48: =LEFT(dms_SingleYear_FinalYear_Result,2)&RIGHT(dms_SingleYear_FinalYear_Result,2) -> 2018 | F48: =LEFT(dms_SingleYear_FinalYear_Result,2)&RIGHT(dms_SingleYear_FinalYear_Result,2) | H48: Formula errors are OK | N48: New line on new route - single circuit | R48: Circuit line length in km | S48: 0's | T48: 0's | U48: 0's | V48: 0's | W48: 0's | X48: 0's | Y48: days
B49: CA | C49: CATEGORY ANALYSIS | E49: =LEFT(dms_SingleYear_FinalYear_Result,2)&RIGHT(dms_SingleYear_FinalYear_Result,2) -> 2018 | F49: =LEFT(dms_SingleYear_FinalYear_Result,2)&RIGHT(dms_SingleYear_FinalYear_Result,2) | H49: Formula errors are OK | N49: New line on new route - dual circuit | R49: Circuit line length in km | S49: 0's | T49: 0's | U49: 0's | V49: 0's | W49: 0's | X49: 0's | Y49: 0's
B50: CPI | C50: CPI | N50: New line on new route - other | R50: Circuit line length in km | S50: MVA added | T50: MVA added | U50: MVA added | V50: MVA added | W50: 0's | X50: 0's | Y50: $0s
B51: EB | C51: ECONOMIC BENCHMARKING | E51: =LEFT(dms_SingleYear_FinalYear_Result,2)&RIGHT(dms_SingleYear_FinalYear_Result,2) -> 2018 | F51: =LEFT(dms_SingleYear_FinalYear_Result,2)&RIGHT(dms_SingleYear_FinalYear_Result,2) | H51: Formula errors are OK | N51: Line rebuild over existing route - single circuit | R51: Circuit line length in km | S51: 0's | T51: 0's | U51: 0's | V51: 0's | W51: 0's | X51: $0s | Y51: 0's
B52: PTRM | C52: POST TAX REVENUE MODEL | E52: =LEFT(dms_MultiYear_FinalYear_Result,2)&RIGHT(dms_MultiYear_FinalYear_Result,2) -> 2019 | F52: =LEFT(dms_MultiYear_FinalYear_Result,2)&RIGHT(dms_MultiYear_FinalYear_Result,2) | N52: Line rebuild over existing route - dual circuit | R52: Number | S52: total spend $0s | T52: total spend $0s | U52: total spend $0s | V52: total spend $0s | W52: (per cent)
B53: Reset | C53: REGULATORY REPORTING STATEMENT | E53: =LEFT(dms_MultiYear_FinalYear_Result,2)&RIGHT(dms_MultiYear_FinalYear_Result,2) -> 2019 | F53: =LEFT(dms_MultiYear_FinalYear_Result,2)&RIGHT(dms_MultiYear_FinalYear_Result,2) | H53: Formula errors are OK | N53: Reconductor - Single circuit | R53: Number | S53: net circuit km added | T53: net circuit km added | U53: net circuit km added | V53: net circuit km added
B54: RFM | C54: ROLL FORWARD MODEL | E54: =LEFT(dms_CRCP_FinalYear_Result,2)&RIGHT(dms_CRCP_FinalYear_Result,2) -> 2018 | F54: =LEFT(dms_CRCP_FinalYear_Result,2)&RIGHT(dms_CRCP_FinalYear_Result,2) | N54: Reconductor - Dual circuit | R54: Number | S54: total spend $0s | T54: total spend $0s | U54: total spend $0s | V54: total spend $0s
B55: WACC | C55: WEIGHTED AVERAGE COST OF CAPITAL | E55: =LEFT(dms_MultiYear_FinalYear_Result,2)&RIGHT(dms_MultiYear_FinalYear_Result,2) -> 2019 | F55: =LEFT(dms_MultiYear_FinalYear_Result,2)&RIGHT(dms_MultiYear_FinalYear_Result,2) | N55: Other | S55: net circuit km added | T55: net circuit km added | U55: net circuit km added | V55: net circuit km added
S56: total spend $0s | T56: total spend $0s | U56: total spend $0s | V56: total spend $0s
S57: 0's | U57: $0s
S58: 0's
S59: 0's
S60: $0s
B65: dms_SourceList | C65: dms_FormControl_Choices | E65: dms_FRCPlength_Num_List | F65: dms_FinalYear_List | G65: dms_CRCPlength_Num_List | H65: dms_CFinalYear_List | I65: dms_RCP_fyear_list | J65: dms_CRY_ListF | K65: dms_CRY_ListC | L65: dms_RCP_cyear_list
B66: After appeal | C66: Revenue cap | E66: 1 | F66: FRCP_y1 | G66: 1 | H66: CRCP_y1 | I66: dms_fy1 | J66: 2005-06 | K66: 2006 | L66: dms_cy1
B67: Draft decision | C67: Revenue yield | E67: 2 | F67: FRCP_y2 | G67: 2 | H67: CRCP_y2 | I67: dms_fy2 | J67: 2006-07 | K67: 2007 | L67: dms_cy2
B68: Final decision | C68: Weighted average price cap | E68: 3 | F68: FRCP_y3 | G68: 3 | H68: CRCP_y3 | I68: dms_fy3 | J68: 2007-08 | K68: 2008 | L68: dms_cy3
B69: Pass through decision | E69: 4 | F69: FRCP_y4 | G69: 4 | H69: CRCP_y4 | I69: dms_fy4 | J69: 2008-09 | K69: 2009 | L69: dms_cy4
B70: PTRM annual update | E70: 5 | F70: FRCP_y5 | G70: 5 | H70: CRCP_y5 | I70: dms_fy5 | J70: 2009-10 | K70: 2010 | L70: dms_cy5
B71: PTRM interim update 1 | E71: 6 | F71: FRCP_y6 | G71: 6 | H71: CRCP_y6 | I71: dms_fy6 | J71: 2010-11 | K71: 2011 | L71: dms_cy6
B72: PTRM interim update 2 | E72: 7 | F72: FRCP_y7 | G72: 7 | H72: CRCP_y7 | I72: dms_fy7 | J72: 2011-12 | K72: 2012 | L72: dms_cy7
B73: PTRM interim update 3 | E73: 8 | F73: FRCP_y8 | G73: 8 | H73: CRCP_y8 | I73: dms_fy8 | J73: 2012-13 | K73: 2013 | L73: dms_cy8
B74: PTRM interim update 4 | E74: 9 | F74: FRCP_y9 | G74: 9 | H74: CRCP_y9 | I74: dms_fy9 | J74: 2013-14 | K74: 2014 | L74: dms_cy9
B75: Regulatory proposal | E75: 10 | F75: FRCP_y10 | G75: 10 | H75: CRCP_y10 | I75: dms_fy10 | J75: 2014-15 | K75: 2015 | L75: dms_cy10
B76: Reporting | I76: dms_fy11 | J76: 2015-16 | K76: 2016 | L76: dms_cy11
B77: Revised regulatory proposal | I77: dms_fy12 | J77: 2016-17 | K77: 2017 | L77: dms_cy12
B78: RFM annual update | D78: dms_FRCP_years | F78: dms_CRCP_years | H78: dms_CRCP_index | I78: dms_fy13 | J78: 2017-18 | K78: 2018 | L78: dms_cy13
B79: WACC annual update | D79: =FRCP_y1 -> 2015-16 | E79: dms_FRCP_y1 | F79: =IF(dms_RPT="financial",VALUE(LEFT(dms_FRCP_y1,4)-1)&"-"&TEXT(VALUE(RIGHT(dms_FRCP_y1,2)-1),"0#"),VALUE(LEFT(dms_FRCP_y1,4)-1)) -> 2014 | G79: dms_CRCP_yZ | H79: 1 | I79: dms_fy14 | J79: 2018-19 | K79: 2019 | L79: dms_cy14
D80: =IF(dms_RPT="financial",VALUE(LEFT(dms_FRCP_y1,4)+1)&"-"&VALUE(MID(dms_FRCP_y1,3,2)+2),VALUE(LEFT(dms_FRCP_y1,4)+1)) -> 2016 | E80: dms_FRCP_y2 | F80: =IF(dms_RPT="financial",VALUE(LEFT(dms_CRCP_yZ,4)-1)&"-"&TEXT(VALUE(RIGHT(dms_CRCP_yZ,2)-1),"0#"),VALUE(LEFT(dms_CRCP_yZ,4)-1)) -> 2013 | G80: dms_CRCP_yY | H80: 2 | I80: dms_fy15 | J80: 2019-20 | K80: 2020 | L80: dms_cy15
D81: =IF(dms_RPT="financial",VALUE(LEFT(dms_FRCP_y2,4)+1)&"-"&VALUE(MID(dms_FRCP_y2,3,2)+2),VALUE(LEFT(dms_FRCP_y2,4)+1)) -> 2017 | E81: dms_FRCP_y3 | F81: =IF(dms_RPT="financial",VALUE(LEFT(dms_CRCP_yY,4)-1)&"-"&TEXT(VALUE(RIGHT(dms_CRCP_yY,2)-1),"0#"),VALUE(LEFT(dms_CRCP_yY,4)-1)) -> 2012 | G81: dms_CRCP_yX | H81: 3
D82: =IF(dms_RPT="financial",VALUE(LEFT(dms_FRCP_y3,4)+1)&"-"&VALUE(MID(dms_FRCP_y3,3,2)+2),VALUE(LEFT(dms_FRCP_y3,4)+1)) -> 2018 | E82: dms_FRCP_y4 | F82: =IF(dms_RPT="financial",VALUE(LEFT(dms_CRCP_yX,4)-1)&"-"&TEXT(VALUE(RIGHT(dms_CRCP_yX,2)-1),"0#"),VALUE(LEFT(dms_CRCP_yX,4)-1)) -> 2011 | G82: dms_CRCP_yW | H82: 4
D83: =IF(dms_RPT="financial",VALUE(LEFT(dms_FRCP_y4,4)+1)&"-"&VALUE(MID(dms_FRCP_y4,3,2)+2),VALUE(LEFT(dms_FRCP_y4,4)+1)) -> 2019 | E83: dms_FRCP_y5 | F83: =IF(dms_RPT="financial",VALUE(LEFT(dms_CRCP_yW,4)-1)&"-"&TEXT(VALUE(RIGHT(dms_CRCP_yW,2)-1),"0#"),VALUE(LEFT(dms_CRCP_yW,4)-1)) -> 2010 | G83: dms_CRCP_yV | H83: 5
D84: =IF(dms_RPT="financial",VALUE(LEFT(dms_FRCP_y5,4)+1)&"-"&VALUE(MID(dms_FRCP_y5,3,2)+2),VALUE(LEFT(dms_FRCP_y5,4)+1)) -> 2020 | E84: dms_FRCP_y6 | F84: =IF(dms_RPT="financial",VALUE(LEFT(dms_CRCP_yV,4)-1)&"-"&TEXT(VALUE(RIGHT(dms_CRCP_yV,2)-1),"0#"),VALUE(LEFT(dms_CRCP_yV,4)-1)) -> 2009 | G84: dms_CRCP_yU | H84: 6
D85: =IF(dms_RPT="financial",VALUE(LEFT(dms_FRCP_y6,4)+1)&"-"&VALUE(MID(dms_FRCP_y6,3,2)+2),VALUE(LEFT(dms_FRCP_y6,4)+1)) -> 2021 | E85: dms_FRCP_y7 | F85: =IF(dms_RPT="financial",VALUE(LEFT(dms_CRCP_yU,4)-1)&"-"&TEXT(VALUE(RIGHT(dms_CRCP_yU,2)-1),"0#"),VALUE(LEFT(dms_CRCP_yU,4)-1)) -> 2008 | G85: dms_CRCP_yT | H85: 7
D86: =IF(dms_RPT="financial",VALUE(LEFT(dms_FRCP_y7,4)+1)&"-"&VALUE(MID(dms_FRCP_y7,3,2)+2),VALUE(LEFT(dms_FRCP_y7,4)+1)) -> 2022 | E86: dms_FRCP_y8 | F86: =IF(dms_RPT="financial",VALUE(LEFT(dms_CRCP_yT,4)-1)&"-"&TEXT(VALUE(RIGHT(dms_CRCP_yT,2)-1),"0#"),VALUE(LEFT(dms_CRCP_yT,4)-1)) -> 2007 | G86: dms_CRCP_yS | H86: 8
D87: =IF(dms_RPT="financial",VALUE(LEFT(dms_FRCP_y8,4)+1)&"-"&VALUE(MID(dms_FRCP_y8,3,2)+2),VALUE(LEFT(dms_FRCP_y8,4)+1)) -> 2023 | E87: dms_FRCP_y9 | F87: =IF(dms_RPT="financial",VALUE(LEFT(dms_CRCP_yS,4)-1)&"-"&TEXT(VALUE(RIGHT(dms_CRCP_yS,2)-1),"0#"),VALUE(LEFT(dms_CRCP_yS,4)-1)) -> 2006 | G87: dms_CRCP_yR | H87: 9
D88: =IF(dms_RPT="financial",VALUE(LEFT(dms_FRCP_y9,4)+1)&"-"&VALUE(MID(dms_FRCP_y9,3,2)+2),VALUE(LEFT(dms_FRCP_y9,4)+1)) -> 2024 | E88: dms_FRCP_y10 | F88: =IF(dms_RPT="financial",VALUE(LEFT(dms_CRCP_yR,4)-1)&"-"&TEXT(VALUE(RIGHT(dms_CRCP_yR,2)-1),"0#"),VALUE(LEFT(dms_CRCP_yR,4)-1)) -> 2005 | G88: dms_CRCP_yQ | H88: 10
B100: Reason for interruption | C100: Detailed reason for interruption | D100: dms_Reason_Interruption
B101: Animal | C101: Animal impact | D101: Animal
C102: Animal nesting/burrowing, etc and other | D102: Asset failure
C103: Other | D103: Other
B104: Asset failure | C104: LV | D104: Overloads
C105: Distribution substation | D105: Planned
C106: HV | D106: Network business
C107: Zone substation | D107: Third party
C108: Subtransmission | D108: Unknown
B109: Other | C109: insert description of 'other' | D109: Vegetation
B110: Overloads | C110: - | D110: Weather
B111: Planned | C111: - | D111: 2 - STPIS Exclusion (3.3)(a)
B112: Network business | C112: Network error | D112: 3 - STPIS Exclusion (3.3)(a)
C113: Switching and protection error | D113: 4 - STPIS Exclusion (3.3)(a)
B114: Third party | C114: Fire | D114: 5 - STPIS Exclusion (3.3)(a)
C115: Other | D115: 6 - STPIS Exclusion (3.3)(a)
C116: Dig-in | D116: 7 - STPIS Exclusion (3.3)(a)
C117: Unauthorised access
C118: Vehicle impact
B119: Unknown | C119: Unknown
B120: Vegetation | C120: Blow-in/Fall-in - NSP responsibility
C121: Grow-in - NSP responsibility
C122: Blow-in/Fall-in - Other responsible party
C123: Grow-in - Other responsible party
B124: Weather | C124: -
B125: 2 - STPIS Exclusion (3.3)(a) | C125: -
B126: 3 - STPIS Exclusion (3.3)(a) | C126: -
B127: 4 - STPIS Exclusion (3.3)(a) | C127: -
B128: 5 - STPIS Exclusion (3.3)(a) | C128: -
B129: 6 - STPIS Exclusion (3.3)(a) | C129: -
B130: 7 - STPIS Exclusion (3.3)(a) | C130: -

Sheet Instructions
B2: =CONCATENATE(dms_Segment," Network Service Provider") -> Distribution Network Service Provider
B3: Annual Reporting RIN Template
C4: =CONCATENATE("This template is to be used by ",dms_TradingName," to fulfil its reporting obligations to the AER.") -> This template is to be used by Powercor Australia to fulfil its reporting obligations to the AER.
C5: INSTRUCTIONS
C6: Complete the Business & other details worksheet before entering data or values in any other worksheets. The Business & other details worksheet is linked to other worksheets within the workbook and automatically generates certain column headings and conditional formatting.
C8: Identifying CONFIDENTIAL INFORMATION: Please use the macro at the top of each worksheet to identify confidential information.
C9: -Do this by selecting the cell or cells that contain confidential information and then run the Mark selected cells as CONFIDENTIAL macro. This will format the cells a specific colour that is identified by the AER's database which in turn marks that information as confidential. -To reverse this, select the cell or cells and run the Return cells to NON-CONFIDENTIAL macro
C11: UNITS OF MEASURE All amounts are to be unrounded and reported in nominal terms on a one for one basis: that is 1000 is to be entered as '1000'.
C13: COLOUR CODING OF INPUT / NON-INPUT CELLS:
D14: Yellow = Input cell (mandatory)
D15: Darker yellow = input cell (mandatory)
D16: Orange = input cell (if data available)
D17: Grey = Not applicable/No inputs required
D18: Leave coloured cells blank if no information exists. PLEASE DO NOT ENTER TEXT into cells that are to contain numeric data.
C21: WORKSHEET NAVIGATION Many tables in the worksheets have been "grouped" to allow for easy navigation. To ungroup or group data use the outline symbols in the left margin of excel (for Row groupings) or above the columns (for column groupings).
C23: RETURNING COMPLETED RESPONSES Please return four (4) files to the AER: 1. A confidential version which must contain a complete set of all responses with confidential information marked using the Mark selected cells CONFIDENTIAL macro and which has been completed using the locked template file provided by the AER. 2. An actual and an estimate version with confidential information marked using the Mark selected cells CONFIDENTIAL macro and which has been completed using the locked template file provided by the AER. 3. A public version with confidential information either removed completely or aggregated in some form together with writtten consent to disclose the public version of the response. Use the drop down box on the Business and other details worksheet to identify the file as either confidential ('consolidated') or public.
C25: SUBMITTING AMENDED DATA TO THE AER If an NSP wishes to correct data previously submitted to the AER it should resubmit that data using the original completed submission as the starting point. Please make any necessary changes to the data. Data that is not being amended should be left unchanged. NSPs must identify the reason for the amendments in the Amendment Reason box on the Business and other details worksheet. NSPs may provide further details regarding any amendments in the Amendments worksheet. .
C26: NSP may use Amended Data macro to highlight cells that contain amended data.
C27: Please resubmit two (2) files - a confidential version and a public version of the amended submission to the AER

Sheet Contents
B1: REGULATORY REPORTING STATEMENT
B2: =dms_TradingName -> Powercor Australia
B3: =CONCATENATE("Benchmarking RIN response ",CRY) -> Benchmarking RIN response 2018
B5: CONTENTS
B12: 3. ECONOMIC BENCHMARKING

Sheet Business & other details
B1: REGULATORY REPORTING STATEMENT
B2: =dms_TradingName -> Powercor Australia
B3: =CONCATENATE("Benchmarking RIN response ",CRY) -> Benchmarking RIN response 2018
B4: BUSINESS & OTHER DETAILS
B7: Instructions
B8: Complete the following business details regulatory template before entering data or values in any other regulatory template. This regulatory template is linked to other cells within the spreadsheet and automatically generates column headings.
B10: SUBMISSION PARTICULARS INPUT SHEETS
B12: ENTITY DETAILS
B14: Short name | C14: Powercor Australia
B15: ACN / ABN | C15: =INDEX(dms_ABN_List,MATCH(dms_TradingName,dms_TradingName_List)) -> 89064651109
B18: Business address | C18: Address 1 | E18: =INDEX(dms_Addr1_List,MATCH(dms_TradingName,dms_TradingName_List)) -> 40 Market Street
D19: Address 2 | E19: =IF(ISBLANK(INDEX(dms_Addr2_List,MATCH(dms_TradingName,dms_TradingName_List))),"",INDEX(dms_Addr2_List,MATCH(dms_TradingName,dms_TradingName_List))) -> 
C20: Suburb | E20: =INDEX(dms_Suburb_List,MATCH(dms_TradingName,dms_TradingName_List)) -> MELBOURNE
D21: State | E21: =INDEX(dms_State_List,MATCH(dms_TradingName,dms_TradingName_List)) -> Vic | F21: p/code | G21: =INDEX(dms_PostCode_List,MATCH(dms_TradingName,dms_TradingName_List)) -> 3000
B23: Postal address | C23: Address 1 | E23: =INDEX(dms_PAddr1_List,MATCH(dms_TradingName,dms_TradingName_List)) -> Locked bag 14090
D24: Address 2 | E24: =IF(ISBLANK(INDEX(dms_PAddr2_List,MATCH(dms_TradingName,dms_TradingName_List))),"",INDEX(dms_PAddr2_List,MATCH(dms_TradingName,dms_TradingName_List))) -> 
C25: Suburb | E25: =INDEX(dms_PSuburb_List,MATCH(dms_TradingName,dms_TradingName_List)) -> MELBOURNE
D26: State | E26: =INDEX(dms_PState_List,MATCH(dms_TradingName,dms_TradingName_List)) -> VIC | F26: p/code | G26: =INDEX(dms_PPostCode_List,MATCH(dms_TradingName,dms_TradingName_List)) -> 3001
B29: Contact name/s | C29: Mark de Villiers
B30: Contact phone/s | AA30: Tom Hallam
B31: Contact email address/s | AA31: Tom Hallam
B33: REGULATORY CONTROL PERIODS
B35: Forthcoming regulatory control period | C35: 2015-16 | D35: =dms_FRCP_y2 -> 2016 | E35: =dms_FRCP_y3 -> 2017 | F35: =dms_FRCP_y4 -> 2018 | G35: =dms_FRCP_y5 -> 2019 | H35: =dms_FRCP_y6 -> 2020 | I35: =IF(dms_RPT="financial",VALUE(LEFT(FRCP_y6,4)+1)&"-"&VALUE(MID(FRCP_y6,3,2)+2),VALUE(LEFT(FRCP_y6,4)+1)) -> 2021
B38: Current regulatory control period | C38: =dms_CRCP_FirstYear_Result -> 2010 | D38: =IF(dms_RPT="financial",VALUE(LEFT(CRCP_y1,4)+1)&"-"&TEXT(VALUE(RIGHT(CRCP_y1,2)+1),"0#"),VALUE(LEFT(CRCP_y1,4)+1)) -> 2011 | E38: =IF(dms_RPT="financial",VALUE(LEFT(CRCP_y2,4)+1)&"-"&TEXT(VALUE(RIGHT(CRCP_y2,2)+1),"0#"),VALUE(LEFT(CRCP_y2,4)+1)) -> 2012 | F38: =IF(dms_RPT="financial",VALUE(LEFT(CRCP_y3,4)+1)&"-"&TEXT(VALUE(RIGHT(CRCP_y3,2)+1),"0#"),VALUE(LEFT(CRCP_y3,4)+1)) -> 2013 | G38: =IF(dms_RPT="financial",VALUE(LEFT(CRCP_y4,4)+1)&"-"&TEXT(VALUE(RIGHT(CRCP_y4,2)+1),"0#"),VALUE(LEFT(CRCP_y4,4)+1)) -> 2014 | H38: =IF(dms_RPT="financial",VALUE(LEFT(CRCP_y5,4)+1)&"-"&TEXT(VALUE(RIGHT(CRCP_y5,2)+1),"0#"),VALUE(LEFT(CRCP_y5,4)+1)) -> 2015
B41: Previous regulatory control period | C41: =IF(dms_RPT="financial",VALUE(LEFT(PRCP_y2,4)-1)&"-"&TEXT(VALUE(MID(PRCP_y2,3,2)),"0#"),VALUE(LEFT(PRCP_y2,4)-1)) -> 2005 | D41: =IF(dms_RPT="financial",VALUE(LEFT(PRCP_y3,4)-1)&"-"&TEXT(VALUE(MID(PRCP_y3,3,2)),"0#"),VALUE(LEFT(PRCP_y3,4)-1)) -> 2006 | E41: =IF(dms_RPT="financial",VALUE(LEFT(PRCP_y4,4)-1)&"-"&TEXT(VALUE(MID(PRCP_y4,3,2)),"0#"),VALUE(LEFT(PRCP_y4,4)-1)) -> 2007 | F41: =IF(dms_RPT="financial",VALUE(LEFT(PRCP_y5,4)-1)&"-"&TEXT(VALUE(RIGHT(PRCP_y5,2)-1),"0#"),VALUE(LEFT(PRCP_y5,4)-1)) -> 2008 | G41: =IF(dms_RPT="financial",VALUE(LEFT(CRCP_y1,4)-1)&"-"&TEXT(VALUE(RIGHT(CRCP_y1,2)-1),"0#"),VALUE(LEFT(CRCP_y1,4)-1)) -> 2009
B44: Current regulatory year | C44: 2018 | D44: CRY
C47: DELETE NR 'CRY' IF NOT AN ANNUAL RIN (EB, CA , ARR)
C48: APPLY NR 'CRY' IF AN ANNUAL RIN (EB, CA , ARR)
B50: Source | C50: Reporting | E50: Please select the correct submission type from the dropdown list.
B51: Data quality (actual, estimate, public, consolidated) | C51: Consolidated
B52: Amended RIN submission - amendment reason
B53: Submission Date | C53: dd/mm/yyyy | D53: dms_SubmissionDate | E53: Please enter date this file submitted to AER (dd/mm/yyyy)
B54: EBSS - First application of scheme in forthcoming period? | C54: No
A55: HIDE THESE ROWS | B55: Sector | C55: =INDEX(dms_Sector_List,MATCH(dms_TradingName,dms_TradingName_List)) -> Electricity | D55: dms_Sector | E55: =INDEX(dms_Sector_List,MATCH(dms_TradingName,dms_TradingName_List))
B56: Segment | C56: =INDEX(dms_Segment_List,MATCH(dms_TradingName,dms_TradingName_List)) -> Distribution | D56: dms_Segment | E56: =INDEX(dms_Segment_List,MATCH(dms_TradingName,dms_TradingName_List))
B57: Regulatory Year Ending | C57: =IF(dms_MultiYear_Flag=1,LEFT(dms_Specified_FinalYear,2)&RIGHT(dms_Specified_FinalYear,2),INDEX(dms_RYE_Formula_Result,MATCH(dms_Model,dms_Model_List))) -> 2018 | D57: dms_RYE | E57: =IF(dms_MultiYear_Flag=1,LEFT(dms_Specified_FinalYear,2)&RIGHT(dms_Specified_FinalYear,2),INDEX(dms_RYE_Formula_Result,MATCH(dms_Model,dms_Model_List)))
B58: Reporting Period Type | C58: =INDEX(dms_RPT_List,MATCH(dms_TradingName,dms_TradingName_List)) -> Calendar | D58: dms_RPT | E58: =INDEX(dms_RPT_List,MATCH(dms_TradingName,dms_TradingName_List))
B59: Model or RIN Type | C59: EB | D59: dms_Model | E59: Drop down selection
B60: Security Classification | C60: Public | D60: dms_Classification | E60: Always Public
B61: Template - version no. | C61: 5 | D61: dms_TemplateNumber
B62: Dollar $ real month | C62: =INDEX(dms_RPTMonth_List,MATCH(dms_TradingName,dms_TradingName_List)) -> December | D62: dms_RPTMonth | E62: =INDEX(dms_RPTMonth_List,MATCH(dms_TradingName,dms_TradingName_List))
B63: Dollar $ real (the last month before the FRCP_y1) | C63: =IF(SUM(dms_SingleYear_Model)>0,CONCATENATE(dms_RPTMonth)&" "&VALUE((LEFT(CRY,2))&RIGHT(CRY,2)),CONCATENATE(dms_RPTMonth)&" "&VALUE((LEFT(dms_CRCP_FinalYear_Result,2))&RIGHT(dms_CRCP_FinalYear_Result,2))) -> December 2018 | D63: dms_DollarReal | E63: =IF(SUM(dms_SingleYear_Model)>0,CONCATENATE(dms_RPTMonth)&" "&VALUE((LEFT(CRY,2))&RIGHT(CRY,2)),CONCATENATE(dms_RPTMonth)&" "&VALUE((LEFT(dms_CRCP_FinalYear_Result,2))&RIGHT(dms_CRCP_FinalYear_Result,2)))
B64: Form of control | C64: =INDEX(dms_FormControl_List,MATCH(dms_TradingName,dms_TradingName_List)) -> Revenue cap | D64: dms_FormControl | E64: =INDEX(dms_FormControl_List,MATCH(dms_TradingName,dms_TradingName_List))
B65: RIN response - version no. | C65: 1 | D65: dms_RINversion
B66: Jurisdiction | C66: =INDEX(dms_JurisdictionList,MATCH(dms_TradingName,dms_TradingName_List)) -> Vic | D66: dms_Jurisdiction | E66: =INDEX(dms_JurisdictionList,MATCH(dms_TradingName,dms_TradingName_List))
B67: Backcast Multiyear EB, CA or ARR? | C67: 0 | D67: dms_MultiYear_Flag | E67: 1=y, 0-n
C68: 2013 | D68: dms_Specified_FinalYear | E68: The result here is returned to dms_CRCP_FinalYear_Result if dms_MultiYear_Flag is set to 1
B69: Single Year Model T/F | C69: =IF(dms_Model="EB",1,0) -> 1 | D69: dms_EB
C70: =IF(dms_Model="CA",1,0) -> 0 | D70: dms_CA | E70: =dms_SingleYear_Model
C71: =IF(dms_Model="ARR",1,0) -> 0 | D71: dms_ARR
B72: Single Year Final Year Reference | C72: CRY | D72: dms_SingleYear_FinalYear_Ref | E72: This is the reference for EB, CA & ARR RINs
B73: Single Year Final Year Result | C73: =INDIRECT(dms_SingleYear_FinalYear_Ref) -> 2018 | D73: dms_SingleYear_FinalYear_Result | E73: =INDIRECT(dms_SingleYear_FinalYear_Ref) | I73: Formula errors OK
B74: FRCP length in years | C74: =INDEX(dms_FRCPlength_List,MATCH(dms_TradingName,dms_TradingName_List)) -> 5 | D74: dms_FRCPlength_Num | E74: =INDEX(dms_FRCPlength_List,MATCH(dms_TradingName,dms_TradingName_List))
B75: Multi Year Final Year Reference | C75: =INDEX(dms_FinalYear_List,MATCH(dms_FRCPlength_Num,dms_FRCPlength_Num_List)) -> FRCP_y5 | D75: dms_MultiYear_FinalYear_Ref | E75: =INDEX(dms_FinalYear_List,MATCH(dms_FRCPlength_Num,dms_FRCPlength_Num_List))
B76: Multi Year Final Year Result | C76: =IF(dms_MultiYear_Flag=0,INDIRECT(dms_MultiYear_FinalYear_Ref),dms_Specified_FinalYear) -> 2019 | D76: dms_MultiYear_FinalYear_Result | E76: =IF(dms_MultiYear_Flag=0,INDIRECT(dms_MultiYear_FinalYear_Ref),dms_Specified_FinalYear) | I76: Formula errors OK
B77: CRCP length in years | C77: =INDEX(dms_CRCPlength_List,MATCH(dms_TradingName,dms_TradingName_List)) -> 5 | D77: dms_CRCPlength_Num | E77: =INDEX(dms_CRCPlength_List,MATCH(dms_TradingName,dms_TradingName_List))
B78: CRCP Final Year Reference | C78: =INDEX(dms_CFinalYear_List,MATCH(dms_CRCPlength_Num,dms_CRCPlength_Num_List)) -> CRCP_y5 | D78: dms_CRCP_FinalYear_Ref | E78: =INDEX(dms_CFinalYear_List,MATCH(dms_CRCPlength_Num,dms_CRCPlength_Num_List))
B79: CRCP First Year Result | C79: =INDEX(dms_CRCP_years,MATCH(dms_CRCPlength_Num,dms_CRCP_index)) -> 2010 | D79: dms_CRCP_FirstYear_Result | E79: =INDEX(dms_CRCP_years,MATCH(dms_CRCPlength_Num,dms_CRCP_index))
B80: CRCP Final Year Result | C80: =IF(dms_MultiYear_Flag=0,(IF(SUM(dms_SingleYear_Model)>0,CRY,dms_CRCP_yZ)),dms_Specified_FinalYear) -> 2018 | D80: dms_CRCP_FinalYear_Result | E80: =IF(dms_MultiYear_Flag=0,(IF(SUM(dms_SingleYear_Model)>0,CRY,dms_CRCP_yZ)),dms_Specified_FinalYear)
B81: Table 6.6.3 - Public lighting repair - no. business days | C81: =INDEX(dms_663_List,MATCH(dms_TradingName,dms_TradingName_List)) -> 2 | D81: dms_663
B82: Distribution Determination Reference | C82: =INDEX(dms_DeterminationRef_List,MATCH(dms_TradingName,dms_TradingName_List)) -> 2016-20 Distribution Determination
B83: Backcast templates only - unit of measure | C83: $0s | D83: dms_Backcast_UOM | E83: If the cover sheet is for Backcast data ensure to apply dms_Backcast_UOM named range to this field. Otherwise, do not apply this named range.
B84: EB/CA Unit of Measure for Monetary Values | C84: $0s | D84: dms_dollar_nom_UOM | E84: If the cover sheet is attached to an EB files make sure this field is set
B86: discard this record? | C86: NO | D86: dms_DISCARD | E86: If record is to be discarded from DB set this flag to YES
B88: USES NAMED RANGES FLAG | C88: yes | D88: dms_Defined_Names_Used

Sheet 3.1 Revenue
B1: REGULATORY REPORTING STATEMENT
B2: =dms_TradingName -> Powercor Australia
B3: =CONCATENATE("Benchmarking RIN response ",CRY) -> Benchmarking RIN response 2018
B4: 3.1 REVENUE
B6: There are THREE tables on this worksheet. Each table has been grouped for ease of navigation. See the Instructions sheet on how to group or ungroup tables.
B8: 3.1.1 - REVENUE GROUPING BY CHARGEABLE QUANTITY
C9: Standard control services | D9: Alternative control services
C10: REVENUE ($0's)
C11: =CRY -> 2018 | D11: =CRY -> 2018
A12: DREV0101 | B12: Revenue from Fixed Customer Charges | C12: ='[2]EB 3.1'!D10 -> 142837114.6
A13: DREV0102 | B13: Revenue from Energy Delivery charges where time of use is not a determinant | C13: ='[2]EB 3.1'!D11 -> 140368815.3
A14: DREV0103 | B14: Revenue from On–Peak Energy Delivery charges | C14: ='[2]EB 3.1'!D12 -> 174560125.4
A15: DREV0104 | B15: Revenue from Shoulder period Energy Delivery Charges | C15: ='[2]EB 3.1'!D13 -> 412795.1039
A16: DREV0105 | B16: Revenue from Off–Peak Energy Delivery charges | C16: ='[2]EB 3.1'!D14 -> 53588038.1
A17: DREV0106 | B17: Revenue from controlled load customer charges | C17: ='[2]EB 3.1'!D15 -> 5841211.474
A18: DREV0107 | B18: Revenue from unmetered supplies | C18: ='[2]EB 3.1'!D16 -> 5999022.596
A19: DREV0108 | B19: Revenue from Contracted Maximum Demand charges | C19: ='[2]EB 3.1'!D17 -> 0
A20: DREV0109 | B20: Revenue from Measured Maximum Demand charges | C20: ='[2]EB 3.1'!D18 -> 108017720.9
A21: DREV0110 | B21: Revenue from metering charges | C21: ='[2]EB 3.1'!D19 -> 0 | D21: ='[2]EB 3.1'!E19 -> 57462396.34
A22: DREV0111 | B22: Revenue from connection charges | C22: ='[2]EB 3.1'!D20 -> 0 | D22: ='[2]EB 3.1'!E20 -> 14860275.79
A23: DREV0112 | B23: Revenue from public lighting charges | C23: ='[2]EB 3.1'!D21 -> 0 | D23: ='[2]EB 3.1'!E21 -> 8897775.75
A24: DREV0113 | B24: Revenue from other Sources | C24: ='[2]EB 3.1'!D22 -> 0 | D24: ='[2]EB 3.1'!E22 -> 10882649.16
A25: DREV01 | B25: Total revenue by chargeable quantity | C25: =SUM(C12:C24) -> 631624843.4 | D25: =SUM(D12:D24) -> 92103097.04
B28: 3.1.2 - REVENUE GROUPING BY CUSTOMER TYPE OR CLASS
C29: Standard control services | D29: Alternative control services
C30: REVENUE ($0's)
C31: =CRY -> 2018 | D31: =CRY -> 2018
A32: DREV0201 | B32: Revenue from residential Customers | C32: ='[2]EB 3.1'!D30 -> 262550505.9
A33: DREV0202 | B33: Revenue from Non residential customers not on demand tariffs | C33: ='[2]EB 3.1'!D31 -> 74992173.67
A34: DREV0203 | B34: Revenue from Non-residential low voltage demand tariff customers | C34: ='[2]EB 3.1'!D32 -> 227431564.4
A35: DREV0204 | B35: Revenue from Non-residential high voltage demand tariff customers | C35: ='[2]EB 3.1'!D33 -> 60651576.83
A36: DREV0205 | B36: Revenue from unmetered supplies | C36: ='[2]EB 3.1'!D34 -> 5999022.596 | D36: ='[2]EB 3.1'!E34 -> 8897775.75
A37: DREV0206 | B37: Revenue from Other Customers | C37: ='[2]EB 3.1'!D35 -> 0 | D37: ='[2]EB 3.1'!E35 -> 83205321.29
A38: DREV02 | B38: Total revenue by customer class | C38: =SUM(C32:C37) -> 631624843.4 | D38: =SUM(D32:D37) -> 92103097.04
B40: 3.1.3 - REVENUE (penalties) ALLOWED (deducted) THROUGH INCENTIVE SCHEMES
C41: Standard control services | D41: Alternative control services
C42: REVENUE ($0's)
C43: =CRY -> 2018 | D43: =CRY -> 2018
A44: DREV0301 | B44: EBSS | C44: ='[3]EB 3.1'!D42 -> 4636585.326
A45: DREV0302 | B45: STPIS | C45: ='[3]EB 3.1'!D43 -> 14875562.93
A46: DREV0303 | B46: F-Factor | C46: ='[3]EB 3.1'!D44 -> 1755000
A47: DREV0304 | B47: S-Factor True up | C47: ='[3]EB 3.1'!D45 -> -2016950.889
A48: DREV0305 | B48: Other | C48: ='[3]EB 3.1'!D46 -> 0
A49: DREV03 | B49: Total revenue of incentive schemes | C49: =SUM(C44:C48) -> 19250197.37 | D49: =SUM(D44:D48) -> 0

Sheet 3.2 Operating expenditure
B1: REGULATORY REPORTING STATEMENT
B2: =dms_TradingName -> Powercor Australia
B3: =CONCATENATE("Benchmarking RIN response ",CRY) -> Benchmarking RIN response 2018
B4: 3.2 OPERATING EXPENDITURE
B6: There are THREE tables on this worksheet. Each table has been grouped for ease of navigation. See the Instructions sheet on how to group or ungroup tables.
B8: Instructions
B9: =CONCATENATE("In table 3.2.1, please list each opex category reported in response to ",dms_TradingName, "'s annual reporting RIN and report opex for each category.") -> In table 3.2.1, please list each opex category reported in response to Powercor Australia's annual reporting RIN and report opex for each category.
B12: 3.2.1 - OPEX CATEGORIES
B13: CURRENT OPEX CATEGORIES AND COST ALLOCATIONS
C14: Standard control services | D14: Alternative control services
C15: EXPENDITURE ($0's)
C16: =CRY -> 2018 | D16: =CRY -> 2018
A17: DOPEX0101 | B17: Maintenance | C17: ='[4]3.2 Operating expenditure'!C14 -> 50793985.25
A18: DOPEX0102 | B18: Vegetation Management | C18: ='[4]3.2 Operating expenditure'!C15 -> 45642382.64
A19: DOPEX0103 | B19: Emergency | C19: ='[4]3.2 Operating expenditure'!C16 -> 32030497.3
A20: DOPEX0104 | B20: Overheads | C20: ='[4]3.2 Operating expenditure'!C17 -> 97714660.33
A21: DOPEX0105 | B21: Public Lighting | D21: ='[4]3.2 Operating expenditure'!D18 -> 6331782.69
A22: DOPEX0106 | B22: Connection Services | D22: ='[4]3.2 Operating expenditure'!D19 -> 18028254.14
A23: DOPEX0107 | B23: Metering Services | D23: ='[4]3.2 Operating expenditure'!D20 -> 16250065.93
A24: DOPEX0108 | B24: Ancillary Network Services | D24: ='[4]3.2 Operating expenditure'!D21 -> 7378439.684
A25: DOPEX0109
A26: DOPEX0110
A27: DOPEX0111
A28: DOPEX0112
A29: DOPEX0113
A30: DOPEX0114
A31: DOPEX0115
A32: DOPEX0116
A33: DOPEX0117
A34: DOPEX0118
A35: DOPEX0119
A36: DOPEX0120
A37: DOPEX0121
A38: DOPEX0122
A39: DOPEX0123
A40: DOPEX0124
A41: DOPEX0125
A42: DOPEX0126
A43: DOPEX0127
A44: DOPEX0128
A45: DOPEX0129
A46: DOPEX0130
A47: DOPEX0131
A48: DOPEX0132
A49: DOPEX0133
A50: DOPEX0134
A51: DOPEX0135
A52: DOPEX0136
A53: DOPEX0137
A54: DOPEX0138
A55: DOPEX0139
A56: DOPEX0140
A57: DOPEX0141
A58: DOPEX0142
A59: DOPEX01 | B59: Total opex | C59: =SUM(C17:C58) -> 226181525.5 | D59: =SUM(D17:D58) -> 47988542.44
B63: 3.2.2 - OPEX CONSISTENCY
B64: CURRENT COST ALLOCATION APPROACH
C65: Standard control services | D65: Alternative control services
C66: EXPENDITURE ($0's)
C67: =CRY -> 2018 | D67: =CRY -> 2018
A68: DOPEX0201 | B68: Opex for network services | C68: =C59-C70-C73 -> 221767025
A69: DOPEX0202 | B69: Opex for metering | D69: ='[4]3.2 Operating expenditure'!D66 -> 16250065.93
A70: DOPEX0203 | B70: Opex for connection services | C70: ='[4]3.2 Operating expenditure'!$C$67 -> 4040126.109 | D70: ='[4]3.2 Operating expenditure'!D67 -> 18028254.14
A71: DOPEX0204 | B71: Opex for public lighting | D71: ='[4]3.2 Operating expenditure'!D68 -> 6331782.69
A72: DOPEX0205 | B72: Opex for amounts payable for easement levy or similar direct charges on DNSP
A73: DOPEX0206 | B73: Opex for transmission connection point planning | C73: ='[5]EB 3.2'!$D$71 -> 374374.462
B77: 3.2.4 - OPEX FOR HIGH VOLTAGE CUSTOMERS
C78: End user costs (not standard control services)
A79: DOPEX0401 | B79: Opex for high voltage customers | C79: ='[6]EB 3.2'!$D$77 -> 221923.6223

Sheet 3.2.3 Provisions
B1: REGULATORY REPORTING STATEMENT
B2: =dms_TradingName -> Powercor Australia
B3: =CONCATENATE("Benchmarking RIN response ",CRY) -> Benchmarking RIN response 2018
B4: 3.2 OPERATING EXPENDITURE
B6: The is ONE table on this worksheet. Each Provision has been grouped for ease of navigation. See the Instructions sheet on how to group and ungroup tables.
B8: Instructions
B9: =CONCATENATE("In table 3.2.3, please list each opex category reported in response to ",dms_TradingName, "'s annual reporting RIN and report opex for each category.") -> In table 3.2.3, please list each opex category reported in response to Powercor Australia's annual reporting RIN and report opex for each category.
B11: 3.2.3 - PROVISIONS
C12: VALUE ($0's)
C13: =CRY -> 2018
A14: DOPEX03A | B14: Provision for Uninsured Losses
B15: Provision for claims relating to damages sustained from Network assets.
A16: DOPEX0301A | B16: Opening balance (the carrying amount at the beginning of the period) | C16: ='[7]3.2.3 Provisions'!E36 -> -733457.78
B17: Additional provisions made in the period, including increases to existing provisions
A18: DOPEX0302A | B18: Opex component | C18: ='[7]3.2.3 Provisions'!E38 -> -8819728.54
A19: DOPEX0303A | B19: Capex component | C19: ='[7]3.2.3 Provisions'!E39 -> 0
A20: DOPEX0304A | B20: Other component | C20: ='[7]3.2.3 Provisions'!E40 -> 0
B21: Amounts used (that is, incurred and charged against the provision) during the period
A22: DOPEX0305A | B22: Opex component | C22: ='[7]3.2.3 Provisions'!E42 -> 681664.92
A23: DOPEX0306A | B23: Capex component | C23: ='[7]3.2.3 Provisions'!E43 -> 0
A24: DOPEX0307A | B24: Other component | C24: ='[7]3.2.3 Provisions'!E44 -> 0
B25: Unused amounts reversed during the period
A26: DOPEX0308A | B26: Opex component | C26: ='[7]3.2.3 Provisions'!E46 -> 0
A27: DOPEX0309A | B27: Capex component | C27: ='[7]3.2.3 Provisions'!E47 -> 0
A28: DOPEX0310A | B28: Other component | C28: ='[7]3.2.3 Provisions'!E48 -> 0
B29: The increase during the period in the discounted amount arising from the passage of time and the effect of any change in the discount rate
A30: DOPEX0311A | B30: Opex component | C30: ='[7]3.2.3 Provisions'!E50 -> 0
A31: DOPEX0312A | B31: Capex component | C31: ='[7]3.2.3 Provisions'!E51 -> 0
A32: DOPEX0313A | B32: Other component | C32: ='[7]3.2.3 Provisions'!E52 -> 0
A33: DOPEX0314A | B33: Closing balance (carrying amount at the end of the period) | C33: ='[7]3.2.3 Provisions'!E53 -> -8871521.4
A34: DOPEX03B | B34: Provision for Customer Refunds
B35: Represents the present value of the best estimate of the future sacrifice of economic benefits that will be required to settle claims for billings adjustments that relate to the prior year
A36: DOPEX0301B | B36: Opening balance (the carrying amount at the beginning of the period) | C36: ='[7]3.2.3 Provisions'!E56 -> -1460000
B37: Additional provisions made in the period, including increases to existing provisions
A38: DOPEX0302B | B38: Opex component | C38: ='[7]3.2.3 Provisions'!E58 -> 0
A39: DOPEX0303B | B39: Capex component | C39: ='[7]3.2.3 Provisions'!E59 -> 0
A40: DOPEX0304B | B40: Other component | C40: ='[7]3.2.3 Provisions'!E60 -> 0
B41: Amounts used (that is, incurred and charged against the provision) during the period
A42: DOPEX0305B | B42: Opex component | C42: ='[7]3.2.3 Provisions'!E62 -> 0
A43: DOPEX0306B | B43: Capex component | C43: ='[7]3.2.3 Provisions'!E63 -> 0
A44: DOPEX0307B | B44: Other component | C44: ='[7]3.2.3 Provisions'!E64 -> 0
B45: Unused amounts reversed during the period
A46: DOPEX0308B | B46: Opex component | C46: ='[7]3.2.3 Provisions'!E66 -> 1460000
A47: DOPEX0309B | B47: Capex component | C47: ='[7]3.2.3 Provisions'!E67 -> 0
A48: DOPEX0310B | B48: Other component | C48: ='[7]3.2.3 Provisions'!E68 -> 0
B49: The increase during the period in the discounted amount arising from the passage of time and the effect of any change in the discount rate
A50: DOPEX0311B | B50: Opex component | C50: ='[7]3.2.3 Provisions'!E70 -> 0
A51: DOPEX0312B | B51: Capex component | C51: ='[7]3.2.3 Provisions'!E71 -> 0
A52: DOPEX0313B | B52: Other component | C52: ='[7]3.2.3 Provisions'!E72 -> 0
A53: DOPEX0314B | B53: Closing balance (carrying amount at the end of the period) | C53: ='[7]3.2.3 Provisions'!E73 -> 0
A54: DOPEX03C | B54: Provision for Employee Entitlements
B55: Provision made to meet the future annual leave and long service leave entitlements of employees.
A56: DOPEX0301C | B56: Opening balance (the carrying amount at the beginning of the period) | C56: ='[7]3.2.3 Provisions'!E96 -> -60216271.96
B57: Additional provisions made in the period, including increases to existing provisions
A58: DOPEX0302C | B58: Opex component | C58: ='[7]3.2.3 Provisions'!E98 -> -9373386.865
A59: DOPEX0303C | B59: Capex component | C59: ='[7]3.2.3 Provisions'!E99 -> -14781300.37
A60: DOPEX0304C | B60: Other component | C60: ='[7]3.2.3 Provisions'!E100 -> 0
B61: Amounts used (that is, incurred and charged against the provision) during the period
A62: DOPEX0305C | B62: Opex component | C62: ='[7]3.2.3 Provisions'!E102 -> 8911148.741
A63: DOPEX0306C | B63: Capex component | C63: ='[7]3.2.3 Provisions'!E103 -> 12545281.63
A64: DOPEX0307C | B64: Other component | C64: ='[7]3.2.3 Provisions'!E104 -> 0
B65: Unused amounts reversed during the period
A66: DOPEX0308C | B66: Opex component | C66: ='[7]3.2.3 Provisions'!E106 -> 0
A67: DOPEX0309C | B67: Capex component | C67: ='[7]3.2.3 Provisions'!E107 -> 0
A68: DOPEX0310C | B68: Other component | C68: ='[7]3.2.3 Provisions'!E108 -> 0
B69: The increase during the period in the discounted amount arising from the passage of time and the effect of any change in the discount rate
A70: DOPEX0311C | B70: Opex component | C70: ='[7]3.2.3 Provisions'!E110 -> 1450842.6
A71: DOPEX0312C | B71: Capex component | C71: ='[7]3.2.3 Provisions'!E111 -> 0
A72: DOPEX0313C | B72: Other component | C72: ='[7]3.2.3 Provisions'!E112 -> 0
A73: DOPEX0314C | B73: Closing balance (carrying amount at the end of the period) | C73: ='[7]3.2.3 Provisions'!E113 -> -61463686.23
A74: DOPEX03D | B74: Provision for Doubtful Debt
B75: Provision against doubtful tariff and non-tariff receivables.
A76: DOPEX0301D | B76: Opening balance (the carrying amount at the beginning of the period) | C76: ='[7]3.2.3 Provisions'!E116 -> -1192030.324
B77: Additional provisions made in the period, including increases to existing provisions
A78: DOPEX0302D | B78: Opex component | C78: ='[7]3.2.3 Provisions'!E118 -> -2145628.649
A79: DOPEX0303D | B79: Capex component | C79: ='[7]3.2.3 Provisions'!E119 -> 0
A80: DOPEX0304D | B80: Other component | C80: ='[7]3.2.3 Provisions'!E120 -> 0
B81: Amounts used (that is, incurred and charged against the provision) during the period
A82: DOPEX0305D | B82: Opex component | C82: ='[7]3.2.3 Provisions'!E122 -> 0
A83: DOPEX0306D | B83: Capex component | C83: ='[7]3.2.3 Provisions'!E123 -> 0
A84: DOPEX0307D | B84: Other component | C84: ='[7]3.2.3 Provisions'!E124 -> 0
B85: Unused amounts reversed during the period
A86: DOPEX0308D | B86: Opex component | C86: ='[7]3.2.3 Provisions'!E126 -> 2712175.01
A87: DOPEX0309D | B87: Capex component | C87: ='[7]3.2.3 Provisions'!E127 -> 0
A88: DOPEX0310D | B88: Other component | C88: ='[7]3.2.3 Provisions'!E128 -> 0
B89: The increase during the period in the discounted amount arising from the passage of time and the effect of any change in the discount rate
A90: DOPEX0311D | B90: Opex component | C90: ='[7]3.2.3 Provisions'!E130 -> 0
A91: DOPEX0312D | B91: Capex component | C91: ='[7]3.2.3 Provisions'!E131 -> 0
A92: DOPEX0313D | B92: Other component | C92: ='[7]3.2.3 Provisions'!E132 -> 0
A93: DOPEX0314D | B93: Closing balance (carrying amount at the end of the period) | C93: ='[7]3.2.3 Provisions'!E133 -> -625483.9621
A94: DOPEX03E | B94: Provision for Restorations (Vegetation Management)
B95: Represents the future incremental vegetation clearance expenditure associated with network assets.
A96: DOPEX0301E | B96: Opening balance (the carrying amount at the beginning of the period) | C96: ='[7]3.2.3 Provisions'!E136 -> -2519725
B97: Additional provisions made in the period, including increases to existing provisions
A98: DOPEX0302E | B98: Opex component | C98: ='[7]3.2.3 Provisions'!E138 -> -5280637
A99: DOPEX0303E | B99: Capex component | C99: ='[7]3.2.3 Provisions'!E139 -> 0
A100: DOPEX0304E | B100: Other component | C100: ='[7]3.2.3 Provisions'!E140 -> 0
B101: Amounts used (that is, incurred and charged against the provision) during the period
A102: DOPEX0305E | B102: Opex component | C102: ='[7]3.2.3 Provisions'!E142 -> 2500000
A103: DOPEX0306E | B103: Capex component | C103: ='[7]3.2.3 Provisions'!E143 -> 0
A104: DOPEX0307E | B104: Other component | C104: ='[7]3.2.3 Provisions'!E144 -> 0
B105: Unused amounts reversed during the period
A106: DOPEX0308E | B106: Opex component | C106: ='[7]3.2.3 Provisions'!E146 -> 0
A107: DOPEX0309E | B107: Capex component | C107: ='[7]3.2.3 Provisions'!E147 -> 0
A108: DOPEX0310E | B108: Other component | C108: ='[7]3.2.3 Provisions'!E148 -> 0
B109: The increase during the period in the discounted amount arising from the passage of time and the effect of any change in the discount rate
A110: DOPEX0311E | B110: Opex component | C110: ='[7]3.2.3 Provisions'!E150 -> 0
A111: DOPEX0312E | B111: Capex component | C111: ='[7]3.2.3 Provisions'!E151 -> 0
A112: DOPEX0313E | B112: Other component | C112: ='[7]3.2.3 Provisions'!E152 -> 0
A113: DOPEX0314E | B113: Closing balance (carrying amount at the end of the period) | C113: ='[7]3.2.3 Provisions'!E153 -> -5300362
A114: DOPEX03F | B114: Provision for Redundancies
B115: Represents an estimate of employee redundancy expenditure.
A116: DOPEX0301F | B116: Opening balance (the carrying amount at the beginning of the period) | C116: ='[7]3.2.3 Provisions'!E156 -> -4139433.86
B117: Additional provisions made in the period, including increases to existing provisions
A118: DOPEX0302F | B118: Opex component | C118: ='[7]3.2.3 Provisions'!E158 -> -2700000
A119: DOPEX0303F | B119: Capex component | C119: ='[7]3.2.3 Provisions'!E159 -> 0
A120: DOPEX0304F | B120: Other component | C120: ='[7]3.2.3 Provisions'!E160 -> 0
B121: Amounts used (that is, incurred and charged against the provision) during the period
A122: DOPEX0305F | B122: Opex component | C122: ='[7]3.2.3 Provisions'!E162 -> 5336749.55
A123: DOPEX0306F | B123: Capex component | C123: ='[7]3.2.3 Provisions'!E163 -> 0
A124: DOPEX0307F | B124: Other component | C124: ='[7]3.2.3 Provisions'!E164 -> 0
B125: Unused amounts reversed during the period
A126: DOPEX0308F | B126: Opex component | C126: ='[7]3.2.3 Provisions'!E166 -> 0
A127: DOPEX0309F | B127: Capex component | C127: ='[7]3.2.3 Provisions'!E167 -> 0
A128: DOPEX0310F | B128: Other component | C128: ='[7]3.2.3 Provisions'!E168 -> 0
B129: The increase during the period in the discounted amount arising from the passage of time and the effect of any change in the discount rate
A130: DOPEX0311F | B130: Opex component | C130: ='[7]3.2.3 Provisions'!E170 -> 0
A131: DOPEX0312F | B131: Capex component | C131: ='[7]3.2.3 Provisions'!E171 -> 0
A132: DOPEX0313F | B132: Other component | C132: ='[7]3.2.3 Provisions'!E172 -> 0
A133: DOPEX0314F | B133: Closing balance (carrying amount at the end of the period) | C133: ='[7]3.2.3 Provisions'!E173 -> -1502684.31
A134: DOPEX03G | B134: Provision for Environment
B135: The provision records the estimated costs of testing and remediation works at a depot.
A136: DOPEX0301G | B136: Opening balance (the carrying amount at the beginning of the period) | C136: ='[7]3.2.3 Provisions'!E176 -> -320000
B137: Additional provisions made in the period, including increases to existing provisions
A138: DOPEX0302G | B138: Opex component | C138: ='[7]3.2.3 Provisions'!E178 -> 0
A139: DOPEX0303G | B139: Capex component | C139: ='[7]3.2.3 Provisions'!E179 -> 0
A140: DOPEX0304G | B140: Other component | C140: ='[7]3.2.3 Provisions'!E180 -> 0
B141: Amounts used (that is, incurred and charged against the provision) during the period
A142: DOPEX0305G | B142: Opex component | C142: ='[7]3.2.3 Provisions'!E182 -> 0
A143: DOPEX0306G | B143: Capex component | C143: ='[7]3.2.3 Provisions'!E183 -> 0
A144: DOPEX0307G | B144: Other component | C144: ='[7]3.2.3 Provisions'!E184 -> 0
B145: Unused amounts reversed during the period
A146: DOPEX0308G | B146: Opex component | C146: ='[7]3.2.3 Provisions'!E186 -> 0
A147: DOPEX0309G | B147: Capex component | C147: ='[7]3.2.3 Provisions'!E187 -> 0
A148: DOPEX0310G | B148: Other component | C148: ='[7]3.2.3 Provisions'!E188 -> 0
B149: The increase during the period in the discounted amount arising from the passage of time and the effect of any change in the discount rate
A150: DOPEX0311G | B150: Opex component | C150: ='[7]3.2.3 Provisions'!E190 -> 0
A151: DOPEX0312G | B151: Capex component | C151: ='[7]3.2.3 Provisions'!E191 -> 0
A152: DOPEX0313G | B152: Other component | C152: ='[7]3.2.3 Provisions'!E192 -> 0
A153: DOPEX0314G | B153: Closing balance (carrying amount at the end of the period) | C153: ='[7]3.2.3 Provisions'!E193 -> -320000
A154: DOPEX03H | B154: Provision name
B155: Brief description of provision
A156: DOPEX0301H | B156: Opening balance (the carrying amount at the beginning of the period)
B157: Additional provisions made in the period, including increases to existing provisions
A158: DOPEX0302H | B158: Opex component
A159: DOPEX0303H | B159: Capex component
A160: DOPEX0304H | B160: Other component
B161: Amounts used (that is, incurred and charged against the provision) during the period
A162: DOPEX0305H | B162: Opex component
A163: DOPEX0306H | B163: Capex component
A164: DOPEX0307H | B164: Other component
B165: Unused amounts reversed during the period
A166: DOPEX0308H | B166: Opex component
A167: DOPEX0309H | B167: Capex component
A168: DOPEX0310H | B168: Other component
B169: The increase during the period in the discounted amount arising from the passage of time and the effect of any change in the discount rate
A170: DOPEX0311H | B170: Opex component
A171: DOPEX0312H | B171: Capex component
A172: DOPEX0313H | B172: Other component
A173: DOPEX0314H | B173: Closing balance (carrying amount at the end of the period)
A174: DOPEX03I | B174: Provision name
B175: Brief description of provision
A176: DOPEX0301I | B176: Opening balance (the carrying amount at the beginning of the period)
B177: Additional provisions made in the period, including increases to existing provisions
A178: DOPEX0302I | B178: Opex component
A179: DOPEX0303I | B179: Capex component
A180: DOPEX0304I | B180: Other component
B181: Amounts used (that is, incurred and charged against the provision) during the period
A182: DOPEX0305I | B182: Opex component
A183: DOPEX0306I | B183: Capex component
A184: DOPEX0307I | B184: Other component
B185: Unused amounts reversed during the period
A186: DOPEX0308I | B186: Opex component
A187: DOPEX0309I | B187: Capex component
A188: DOPEX0310I | B188: Other component
B189: The increase during the period in the discounted amount arising from the passage of time and the effect of any change in the discount rate
A190: DOPEX0311I | B190: Opex component
A191: DOPEX0312I | B191: Capex component
A192: DOPEX0313I | B192: Other component
A193: DOPEX0314I | B193: Closing balance (carrying amount at the end of the period)
A194: DOPEX03J | B194: Provision name
B195: Brief description of provision
A196: DOPEX0301J | B196: Opening balance (the carrying amount at the beginning of the period)
B197: Additional provisions made in the period, including increases to existing provisions
A198: DOPEX0302J | B198: Opex component
A199: DOPEX0303J | B199: Capex component
A200: DOPEX0304J | B200: Other component
B201: Amounts used (that is, incurred and charged against the provision) during the period
A202: DOPEX0305J | B202: Opex component
A203: DOPEX0306J | B203: Capex component
... 170 more rows

Sheet 3.3 Assets (RAB)
B1: REGULATORY REPORTING STATEMENT
B2: =dms_TradingName -> Powercor Australia
B3: =CONCATENATE("Benchmarking RIN response ",CRY) -> Benchmarking RIN response 2018
B4: 3.3 ASSETS
B6: There are FOUR tables on this worksheet. Each table has been grouped (and sub-grouped) for ease of navigation. See the Instructions sheet on how to group or ungroup tables.
B8: 3.3.1 - REGULATORY ASSET BASE VALUES
C9: Network services | D9: Standard control services | E9: Alternative control services
C10: VALUE ($0's)
C11: =CRY -> 2018 | D11: =CRY -> 2018 | E11: 2018
B12: FOR TOTAL ASSET BASE
A13: DRAB0101 | B13: Opening value | C13: ='[8]EB 3.3'!D11 -> 3051483421 | D13: ='[8]EB 3.3'!E11 -> 3645536279 | E13: ='[8]EB 3.3'!F11 -> 307344526.9
A14: DRAB0102 | B14: Inflation addition | C14: ='[8]EB 3.3'!D12 -> 59006585.48 | D14: ='[8]EB 3.3'!E12 -> 70493795.45 | E14: ='[8]EB 3.3'!F12 -> 5471059.871
A15: DRAB0103 | B15: Straight line depreciation | C15: ='[8]EB 3.3'!D13 -> -171110881.9 | D15: ='[8]EB 3.3'!E13 -> -195460390.1 | E15: ='[8]EB 3.3'!F13 -> -43829071.3
A16: DRAB0105 | B16: Actual additions (recognised in RAB) | C16: ='[8]EB 3.3'!D14 -> 303722267.9 | D16: ='[8]EB 3.3'!E14 -> 350235068.5 | E16: ='[8]EB 3.3'!F14 -> 17348050.39
A17: DRAB0106 | B17: Disposals | C17: ='[8]EB 3.3'!D15 -> 0 | D17: ='[8]EB 3.3'!E15 -> 0 | E17: ='[8]EB 3.3'!F15 -> 0
A18: DRAB0107 | B18: Closing value | C18: =SUM(C13:C17) -> 3243101392 | D18: =SUM(D13:D17) -> 3870804753 | E18: 286334565.8
B21: 3.3.2 - ASSET VALUE ROLL FORWARD
C22: Network services | D22: Standard control services | E22: Alternative control services
C23: VALUE ($0's)
C24: =CRY -> 2018 | D24: =CRY -> 2018 | E24: 2018
B25: For overhead network assets less than 33kV:
A26: DRAB0201 | B26: Opening value | C26: ='[8]EB 3.3'!D24 -> 1308283254 | D26: ='[8]EB 3.3'!E24 -> 1596552555 | E26: ='[8]EB 3.3'!F24 -> 0
A27: DRAB0202 | B27: Inflation addition | C27: ='[8]EB 3.3'!D25 -> 25298294.96 | D27: ='[8]EB 3.3'!E25 -> 30872563.22 | E27: ='[8]EB 3.3'!F25 -> 0
A28: DRAB0203 | B28: Straight line depreciation | C28: ='[8]EB 3.3'!D26 -> -53624948.42 | D28: ='[8]EB 3.3'!E26 -> -65440758.48 | E28: ='[8]EB 3.3'!F26 -> 0
A29: DRAB0205 | B29: Actual additions (recognised in RAB) | C29: ='[8]EB 3.3'!D27 -> 102435191.1 | D29: ='[8]EB 3.3'!E27 -> 125005930.9 | E29: ='[8]EB 3.3'!F27 -> 0
A30: DRAB0206 | B30: Disposals | C30: ='[8]EB 3.3'!D28 -> 0 | D30: ='[8]EB 3.3'!E28 -> 0 | E30: ='[8]EB 3.3'!F28 -> 0
A31: DRAB0207 | B31: Closing value | C31: =SUM(C26:C30) -> 1382391791 | D31: =SUM(D26:D30) -> 1686990291 | E31: =SUM(E26:E30) -> 0
B32: For underground network assets less than 33kV:
A33: DRAB0301 | B33: Opening value | C33: ='[8]EB 3.3'!D31 -> 666312415.7 | D33: ='[8]EB 3.3'!E31 -> 813128798.3 | E33: ='[8]EB 3.3'!F31 -> 0
A34: DRAB0302 | B34: Inflation addition | C34: ='[8]EB 3.3'!D32 -> 12884494.23 | D34: ='[8]EB 3.3'!E32 -> 15723485.05 | E34: ='[8]EB 3.3'!F32 -> 0
A35: DRAB0303 | B35: Straight line depreciation | C35: ='[8]EB 3.3'!D33 -> -27311340.13 | D35: ='[8]EB 3.3'!E33 -> -33329166.1 | E35: ='[8]EB 3.3'!F33 -> 0
A36: DRAB0305 | B36: Actual additions (recognised in RAB) | C36: ='[8]EB 3.3'!D34 -> 52170536.79 | D36: ='[8]EB 3.3'!E34 -> 63665879.38 | E36: ='[8]EB 3.3'!F34 -> 0
A37: DRAB0306 | B37: Disposals | C37: ='[8]EB 3.3'!D35 -> 0 | D37: ='[8]EB 3.3'!E35 -> 0 | E37: ='[8]EB 3.3'!F35 -> 0
A38: DRAB0307 | B38: Closing value | C38: =SUM(C33:C37) -> 704056106.6 | D38: =SUM(D33:D37) -> 859188996.7 | E38: =SUM(E33:E37) -> 0
B39: For distribution substations and transformers:
A40: DRAB0401 | B40: Opening value | C40: ='[8]EB 3.3'!D38 -> 321500925.7 | D40: ='[8]EB 3.3'!E38 -> 392340972.8 | E40: ='[8]EB 3.3'!F38 -> 0
A41: DRAB0402 | B41: Inflation addition | C41: ='[8]EB 3.3'!D39 -> 6216868.729 | D41: ='[8]EB 3.3'!E39 -> 7586703.895 | E41: ='[8]EB 3.3'!F39 -> 0
A42: DRAB0403 | B42: Straight line depreciation | C42: ='[8]EB 3.3'!D40 -> -13177934.14 | D42: ='[8]EB 3.3'!E40 -> -16081582.01 | E42: ='[8]EB 3.3'!F40 -> 0
A43: DRAB0405 | B43: Actual additions (recognised in RAB) | C43: ='[8]EB 3.3'!D41 -> 25172689.98 | D43: ='[8]EB 3.3'!E41 -> 30719282.24 | E43: ='[8]EB 3.3'!F41 -> 0
A44: DRAB0406 | B44: Disposals | C44: ='[8]EB 3.3'!D42 -> 0 | D44: ='[8]EB 3.3'!E42 -> 0 | E44: ='[8]EB 3.3'!F42 -> 0
A45: DRAB0407 | B45: Closing value | C45: =SUM(C40:C44) -> 339712550.3 | D45: =SUM(D40:D44) -> 414565377 | E45: =SUM(E40:E44) -> 0
B46: For overhead network assets 33kV and above:
A47: DRAB0501 | B47: Opening value | C47: ='[8]EB 3.3'!D45 -> 223631025.6 | D47: ='[8]EB 3.3'!E45 -> 272906256.7 | E47: ='[8]EB 3.3'!F45 -> 0
A48: DRAB0502 | B48: Inflation addition | C48: ='[8]EB 3.3'!D46 -> 4324356.849 | D48: ='[8]EB 3.3'!E46 -> 5277192.808 | E48: ='[8]EB 3.3'!F46 -> 0
A49: DRAB0503 | B49: Straight line depreciation | C49: ='[8]EB 3.3'!D47 -> -9166365.296 | D49: ='[8]EB 3.3'!E47 -> -11186097.43 | E49: ='[8]EB 3.3'!F47 -> 0
A50: DRAB0505 | B50: Actual additions (recognised in RAB) | C50: ='[8]EB 3.3'!D48 -> 17509730.23 | D50: ='[8]EB 3.3'!E48 -> 21367853.23 | E50: ='[8]EB 3.3'!F48 -> 0
A51: DRAB0506 | B51: Disposals | C51: ='[8]EB 3.3'!D49 -> 0 | D51: ='[8]EB 3.3'!E49 -> 0 | E51: ='[8]EB 3.3'!F49 -> 0
A52: DRAB0507 | B52: Closing value | C52: =SUM(C47:C51) -> 236298747.4 | D52: =SUM(D47:D51) -> 288365205.3 | E52: =SUM(E47:E51) -> 0
B53: For underground network assets 33kV and above:
A54: DRAB0601 | B54: Opening value | C54: ='[8]EB 3.3'!D52 -> 6016611.053 | D54: ='[8]EB 3.3'!E52 -> 7342321.111 | E54: ='[8]EB 3.3'!F52 -> 0
A55: DRAB0602 | B55: Inflation addition | C55: ='[8]EB 3.3'!D53 -> 116343.3077 | D55: ='[8]EB 3.3'!E53 -> 141978.585 | E55: ='[8]EB 3.3'!F53 -> 0
A56: DRAB0603 | B56: Straight line depreciation | C56: ='[8]EB 3.3'!D54 -> -246613.611 | D56: ='[8]EB 3.3'!E54 -> -300952.863 | E56: ='[8]EB 3.3'!F54 -> 0
A57: DRAB0605 | B57: Actual additions (recognised in RAB) | C57: ='[8]EB 3.3'!D55 -> 471085.066 | D57: ='[8]EB 3.3'!E55 -> 574884.7306 | E57: ='[8]EB 3.3'!F55 -> 0
A58: DRAB0606 | B58: Disposals | C58: ='[8]EB 3.3'!D56 -> 0 | D58: ='[8]EB 3.3'!E56 -> 0 | E58: ='[8]EB 3.3'!F56 -> 0
A59: DRAB0607 | B59: Closing value | C59: =SUM(C54:C58) -> 6357425.816 | D59: =SUM(D54:D58) -> 7758231.563 | E59: =SUM(E54:E58) -> 0
B60: Zone substations and transformers
A61: DRAB0701 | B61: Opening value | C61: ='[8]EB 3.3'!D59 -> 170309082.1 | D61: ='[8]EB 3.3'!E59 -> 207835267.7 | E61: ='[8]EB 3.3'!F59 -> 0
A62: DRAB0702 | B62: Inflation addition | C62: ='[8]EB 3.3'!D60 -> 3293269.543 | D62: ='[8]EB 3.3'!E60 -> 4018914.016 | E62: ='[8]EB 3.3'!F60 -> 0
A63: DRAB0703 | B63: Straight line depreciation | C63: ='[8]EB 3.3'!D61 -> -6980763.315 | D63: ='[8]EB 3.3'!E61 -> -8518916.28 | E63: ='[8]EB 3.3'!F61 -> 0
A64: DRAB0705 | B64: Actual additions (recognised in RAB) | C64: ='[8]EB 3.3'!D62 -> 13334760.13 | D64: ='[8]EB 3.3'!E62 -> 16272963.29 | E64: ='[8]EB 3.3'!F62 -> 0
A65: DRAB0706 | B65: Disposals | C65: ='[8]EB 3.3'!D63 -> 0 | D65: ='[8]EB 3.3'!E63 -> 0 | E65: ='[8]EB 3.3'!F63 -> 0
A66: DRAB0707 | B66: Closing value | C66: =SUM(C61:C65) -> 179956348.4 | D66: =SUM(D61:D65) -> 219608228.7 | E66: =SUM(E61:E65) -> 0
B67: For easements:
A68: DRAB0801 | B68: Opening value
A69: DRAB0802 | B69: Inflation addition
A71: DRAB0805 | B71: Actual additions (recognised in RAB)
A72: DRAB0806 | B72: Disposals
A73: DRAB0807 | B73: Closing value | C73: =SUM(C68:C72) -> 0 | D73: =SUM(D68:D72) -> 0 | E73: =SUM(E68:E72) -> 0
B74: For meters:
A75: DRAB0901 | B75: Opening value | C75: ='[8]EB 3.3'!D72 -> 5.822490209e-09 | D75: ='[8]EB 3.3'!E72 -> 7.105427358e-09 | E75: ='[8]EB 3.3'!F72 -> 282931953.3
A76: DRAB0902 | B76: Inflation addition | C76: ='[8]EB 3.3'!D73 -> 0 | D76: ='[8]EB 3.3'!E73 -> 0 | E76: ='[8]EB 3.3'!F73 -> 5471059.871
A77: DRAB0903 | B77: Straight line depreciation | C77: ='[8]EB 3.3'!D74 -> 0 | D77: ='[8]EB 3.3'!E74 -> 0 | E77: ='[8]EB 3.3'!F74 -> -42262779.6
A78: DRAB0905 | B78: Actual additions (recognised in RAB) | C78: ='[8]EB 3.3'!D75 -> 0 | D78: ='[8]EB 3.3'!E75 -> 0 | E78: ='[8]EB 3.3'!F75 -> 12909803.14
A79: DRAB0906 | B79: Disposals | C79: ='[8]EB 3.3'!D76 -> 0 | D79: ='[8]EB 3.3'!E76 -> 0 | E79: ='[8]EB 3.3'!F76 -> 0
A80: DRAB0907 | B80: Closing value | C80: =SUM(C75:C79) -> 5.822490209e-09 | D80: =SUM(D75:D79) -> 7.105427358e-09 | E80: =SUM(E75:E79) -> 259050036.7
B81: For “other” asset items with long lives:
A82: DRAB1001 | B82: Opening value | C82: ='[8]EB 3.3'!D79 -> 254595242.6 | D82: ='[8]EB 3.3'!E79 -> 254595242.6 | E82: ='[8]EB 3.3'!F79 -> 24412573.51
A83: DRAB1002 | B83: Inflation addition | C83: ='[8]EB 3.3'!D80 -> 4923112.425 | D83: ='[8]EB 3.3'!E80 -> 4923112.425 | E83: ='[8]EB 3.3'!F80 -> 0
A84: DRAB1003 | B84: Straight line depreciation | C84: ='[8]EB 3.3'!D81 -> -29619854.81 | D84: ='[8]EB 3.3'!E81 -> -29619854.81 | E84: ='[8]EB 3.3'!F81 -> -1566291.702
A85: DRAB1005 | B85: Actual additions (recognised in RAB) | C85: ='[8]EB 3.3'!D82 -> 70504545.71 | D85: ='[8]EB 3.3'!E82 -> 70504545.71 | E85: ='[8]EB 3.3'!F82 -> 4438247.25
A86: DRAB1006 | B86: Disposals | C86: ='[8]EB 3.3'!D83 -> 0 | D86: ='[8]EB 3.3'!E83 -> 0 | E86: ='[8]EB 3.3'!F83 -> 0
A87: DRAB1007 | B87: Closing value | C87: =SUM(C82:C86) -> 300403045.9 | D87: =SUM(D82:D86) -> 300403045.9 | E87: =SUM(E82:E86) -> 27284529.06
B88: For “other” asset items with short lives:
A89: DRAB1101 | B89: Opening value | C89: ='[8]EB 3.3'!D86 -> 100834864.5 | D89: ='[8]EB 3.3'!E86 -> 100834864.5 | E89: ='[8]EB 3.3'!F86 -> 0
A90: DRAB1102 | B90: Inflation addition | C90: ='[8]EB 3.3'!D87 -> 1949845.446 | D90: ='[8]EB 3.3'!E87 -> 1949845.446 | E90: ='[8]EB 3.3'!F87 -> 0
A91: DRAB1103 | B91: Straight line depreciation | C91: ='[8]EB 3.3'!D88 -> -30983062.17 | D91: ='[8]EB 3.3'!E88 -> -30983062.17 | E91: ='[8]EB 3.3'!F88 -> 0
A92: DRAB1105 | B92: Actual additions (recognised in RAB) | C92: ='[8]EB 3.3'!D89 -> 22123728.96 | D92: ='[8]EB 3.3'!E89 -> 22123728.96 | E92: ='[8]EB 3.3'!F89 -> 0
A93: DRAB1106 | B93: Disposals | C93: ='[8]EB 3.3'!D90 -> 0 | D93: ='[8]EB 3.3'!E90 -> 0 | E93: ='[8]EB 3.3'!F90 -> 0
A94: DRAB1107 | B94: Closing value | C94: =SUM(C89:C93) -> 93925376.73 | D94: =SUM(D89:D93) -> 93925376.73 | E94: =SUM(E89:E93) -> 0
B98: 3.3.3 - TOTAL DISAGGREGATED RAB ASSET VALUES
C99: Network services | D99: Standard control services | E99: Alternative control services
C100: VALUE ($0's)
C101: =CRY -> 2018 | D101: =CRY -> 2018 | E101: 2018
A102: DRAB1201 | B102: Overhead distribution assets (wires and poles) | C102: ='[8]EB 3.3'!D99 -> 1345337522 | D102: ='[8]EB 3.3'!E99 -> 1641771423 | E102: ='[8]EB 3.3'!F99 -> 0
A103: DRAB1202 | B103: Underground distribution assets (cables, ducts etc) | C103: ='[8]EB 3.3'!D100 -> 685184261.1 | D103: ='[8]EB 3.3'!E100 -> 836158897.5 | E103: ='[8]EB 3.3'!F100 -> 0
A104: DRAB1203 | B104: Distribution substations including transformers | C104: ='[8]EB 3.3'!D101 -> 330606738 | D104: ='[8]EB 3.3'!E101 -> 403453174.9 | E104: ='[8]EB 3.3'!F101 -> 0
A105: DRAB1204 | B105: Overhead assets 33kV and above (wires and towers / poles etc) | C105: ='[8]EB 3.3'!D102 -> 229964886.5 | D105: ='[8]EB 3.3'!E102 -> 280635731 | E105: ='[8]EB 3.3'!F102 -> 0
A106: DRAB1205 | B106: Underground assets 33kV and above (cables, ducts etc) | C106: ='[8]EB 3.3'!D103 -> 6187018.435 | D106: ='[8]EB 3.3'!E103 -> 7550276.337 | E106: ='[8]EB 3.3'!F103 -> 0
A107: DRAB1206 | B107: Zone substations | C107: ='[8]EB 3.3'!D104 -> 175132715.3 | D107: ='[8]EB 3.3'!E104 -> 213721748.2 | E107: ='[8]EB 3.3'!F104 -> 0
A108: DRAB1207 | B108: Easements | C108: ='[8]EB 3.3'!D105 -> 0 | D108: ='[8]EB 3.3'!E105 -> 0 | E108: ='[8]EB 3.3'!F105 -> 0
A109: DRAB1208 | B109: Meters | C109: ='[8]EB 3.3'!D106 -> 5.822490209e-09 | D109: ='[8]EB 3.3'!E106 -> 7.105427358e-09 | E109: ='[8]EB 3.3'!F106 -> 270990995
A110: DRAB1209 | B110: Other assets with long lives (please specify) | C110: ='[8]EB 3.3'!D107 -> 277499144.2 | D110: ='[8]EB 3.3'!E107 -> 277499144.2 | E110: ='[8]EB 3.3'!F107 -> 25848551.28
A111: DRAB1210 | B111: Other assets with short lives (please specify) | C111: ='[8]EB 3.3'!D108 -> 97380120.61 | D111: ='[8]EB 3.3'!E108 -> 97380120.61 | E111: ='[8]EB 3.3'!F108 -> 0
A112: DRAB13 | B112: Value of Capital Contributions or Contributed Assets (included in the above) | C112: ='[8]EB 3.3'!D109 -> 0 | D112: ='[8]EB 3.3'!E109 -> 0 | E112: ='[8]EB 3.3'!F109 -> 0
B115: 3.3.4 - ASSET LIVES
C116: Network services | D116: Standard control services | E116: Alternative control services
C117: Service Life (Years)
C118: =CRY -> 2018 | D118: =CRY -> 2018 | E118: 2018
B119: ESTIMATED SERVICE LIFE OF NEW ASSETS
A120: DRAB1401 | B120: Overhead network assets less than 33kV (wires and poles) | C120: ='[8]EB 3.3'!D117 -> 50.9 | D120: ='[8]EB 3.3'!E117 -> 50.9 | E120: ='[8]EB 3.3'!F117 -> 0
A121: DRAB1402 | B121: Underground network assets less than 33kV (cables) | C121: ='[8]EB 3.3'!D118 -> 50.9 | D121: ='[8]EB 3.3'!E118 -> 50.9 | E121: ='[8]EB 3.3'!F118 -> 0
A122: DRAB1403 | B122: Distribution substations including transformers | C122: ='[8]EB 3.3'!D119 -> 50.9 | D122: ='[8]EB 3.3'!E119 -> 50.9 | E122: ='[8]EB 3.3'!F119 -> 0
A123: DRAB1404 | B123: Overhead network assets 33kV and above (wires and towers / poles etc) | C123: ='[8]EB 3.3'!D120 -> 50.9 | D123: ='[8]EB 3.3'!E120 -> 50.9 | E123: ='[8]EB 3.3'!F120 -> 0
A124: DRAB1405 | B124: Underground network assets 33kV and above(cables, ducts etc) | C124: ='[8]EB 3.3'!D121 -> 50.9 | D124: ='[8]EB 3.3'!E121 -> 50.9 | E124: ='[8]EB 3.3'!F121 -> 0
A125: DRAB1406 | B125: Zone substations and transformers | C125: ='[8]EB 3.3'!D122 -> 50.9 | D125: ='[8]EB 3.3'!E122 -> 50.9 | E125: ='[8]EB 3.3'!F122 -> 0
A126: DRAB1407 | B126: Meters | C126: ='[8]EB 3.3'!D123 ->  | D126: ='[8]EB 3.3'!E123 ->  | E126: ='[8]EB 3.3'!F123 -> 15
A127: DRAB1408 | B127: “Other” assets with long lives | C127: ='[8]EB 3.3'!D124 -> 14.8 | D127: ='[8]EB 3.3'!E124 -> 14.8 | E127: ='[8]EB 3.3'!F124 -> 26
A128: DRAB1409 | B128: “Other” assets with short lives | C128: ='[8]EB 3.3'!D125 -> 6 | D128: ='[8]EB 3.3'!E125 -> 6 | E128: ='[8]EB 3.3'!F125 -> 0
B129: ESTIMATED RESIDUAL SERVICE LIFE
A130: DRAB1501 | B130: Overhead network assets less than 33kV (wires and poles) | C130: ='[8]EB 3.3'!D127 -> 25 | D130: ='[8]EB 3.3'!E127 -> 25 | E130: ='[8]EB 3.3'!F127 -> 0
A131: DRAB1502 | B131: Underground network assets less than 33kV (cables) | C131: ='[8]EB 3.3'!D128 -> 25 | D131: ='[8]EB 3.3'!E128 -> 25 | E131: ='[8]EB 3.3'!F128 -> 0
A132: DRAB1503 | B132: Distribution substations including transformers | C132: ='[8]EB 3.3'!D129 -> 25 | D132: ='[8]EB 3.3'!E129 -> 25 | E132: ='[8]EB 3.3'!F129 -> 0
A133: DRAB1504 | B133: Overhead network assets 33kV and above (wires and towers / poles etc) | C133: ='[8]EB 3.3'!D130 -> 25 | D133: ='[8]EB 3.3'!E130 -> 25 | E133: ='[8]EB 3.3'!F130 -> 0
A134: DRAB1505 | B134: Underground network assets 33kV and above (cables, ducts etc) | C134: ='[8]EB 3.3'!D131 -> 25 | D134: ='[8]EB 3.3'!E131 -> 25 | E134: ='[8]EB 3.3'!F131 -> 0
A135: DRAB1506 | B135: Zone substations and transformers | C135: ='[8]EB 3.3'!D132 -> 25 | D135: ='[8]EB 3.3'!E132 -> 25 | E135: ='[8]EB 3.3'!F132 -> 0
A136: DRAB1507 | B136: Meters | C136: ='[8]EB 3.3'!D133 -> 0 | D136: ='[8]EB 3.3'!E133 -> 0 | E136: ='[8]EB 3.3'!F133 -> 7
A137: DRAB1508 | B137: “Other” assets with long lives | C137: ='[8]EB 3.3'!D134 -> 9 | D137: ='[8]EB 3.3'!E134 -> 9 | E137: ='[8]EB 3.3'!F134 -> 16
A138: DRAB1509 | B138: “Other” assets with short lives | C138: ='[8]EB 3.3'!D135 -> 3 | D138: ='[8]EB 3.3'!E135 -> 3 | E138: ='[8]EB 3.3'!F135 -> 0

Sheet 3.4 Operational data
B1: REGULATORY REPORTING STATEMENT
B2: =dms_TradingName -> Powercor Australia
B3: =CONCATENATE("Benchmarking RIN response ",CRY) -> Benchmarking RIN response 2018
B4: 3.4 OPERATIONAL DATA
B6: There are THREE tables on this worksheet. Each table has been grouped for ease of navigation. See the Instructions sheet on how to group or ungroup tables.
B8: 3.4.1 - ENERGY DELIVERY
D9: Standard control services
D10: VOLUME (0's)
C11: Units | D11: =CRY -> 2018
A12: DOPED01 | B12: Total energy delivered | C12: GWh | D12: ='[9]EB 3.4'!$E$10 -> 10752.71478
B15: 3.4.1.1 - Energy grouping - delivery by chargeable quantity
A16: DOPED0201 | B16: Energy Delivery where time of use is not a determinant | C16: GWh | D16: ='[9]EB 3.4'!E14 -> 2591.675246
A17: DOPED0202 | B17: Energy Delivery at On-peak times | C17: GWh | D17: ='[9]EB 3.4'!E15 -> 4079.339351
A18: DOPED0203 | B18: Energy Delivery at Shoulder times | C18: GWh | D18: ='[9]EB 3.4'!E16 -> 7.699066739
A19: DOPED0204 | B19: Energy Delivery at Off-peak times | C19: GWh | D19: ='[9]EB 3.4'!E17 -> 3621.379145
A20: DOPED0205 | B20: Controlled load energy deliveries | C20: GWh | D20: ='[9]EB 3.4'!E18 -> 381.7785277
A21: DOPED0206 | B21: Energy Delivery to unmetered supplies | C21: GWh | D21: ='[9]EB 3.4'!E19 -> 70.84344115
B23: 3.4.1.2 - Energy - received from TNSP and other DNSPs by time of receipt
A24: DOPED0301 | B24: Energy into DNSP network at On-peak times | C24: GWh | D24: ='[10]EB 3.4'!E22 -> 4732.581931
A25: DOPED0302 | B25: Energy into DNSP network at Shoulder times | C25: GWh | D25: ='[10]EB 3.4'!E23 -> 0
A26: DOPED0303 | B26: Energy into DNSP network at Off-peak times | C26: GWh | D26: ='[10]EB 3.4'!E24 -> 4435.647778
A27: DOPED0304 | B27: Energy received from TNSP and other DNSPs not included in the above categories | C27: GWh | D27: ='[10]EB 3.4'!E25 -> 0
B29: 3.4.1.3 - Energy - received into DNSP system from embedded generation by time of receipt
A30: DOPED0401 | B30: Energy into DNSP network at On-peak times from non-residential embedded generation | C30: GWh | D30: ='[10]EB 3.4'!E28 -> 800.9328851
A31: DOPED0402 | B31: Energy into DNSP network at Shoulder times from non-residential embedded generation | C31: GWh | D31: ='[10]EB 3.4'!E29 -> 0
A32: DOPED0403 | B32: Energy into DNSP network at Off-peak times from non-residential embedded generation | C32: GWh | D32: ='[10]EB 3.4'!E30 -> 516.1159418
A33: DOPED0404 | B33: Energy received from embedded generation not included in above categories from non-residential embedded generation | C33: GWh | D33: ='[10]EB 3.4'!E31 -> 0
A34: DOPED0405 | B34: Energy into DNSP network at On-peak times from residential embedded generation | C34: GWh | D34: ='[10]EB 3.4'!E32 -> 206.2318555
A35: DOPED0406 | B35: Energy into DNSP network at Shoulder times from residential embedded generation | C35: GWh | D35: ='[10]EB 3.4'!E33 -> 0
A36: DOPED0407 | B36: Energy into DNSP network at Off-peak times from residential embedded generation | C36: GWh | D36: ='[10]EB 3.4'!E34 -> 82.3261129
A37: DOPED0408 | B37: Energy received from embedded generation not included in above categories from residential embedded generation | C37: GWh | D37: ='[10]EB 3.4'!E35 -> 0
B39: 3.4.1.4 - Energy grouping - customer type or class
A40: DOPED0501 | B40: Residential customers energy deliveries | C40: GWh | D40: ='[9]EB 3.4'!E38 -> 3544.279728
A41: DOPED0502 | B41: Non residential customers not on demand tariffs energy deliveries | C41: GWh | D41: ='[9]EB 3.4'!E39 -> 991.8613279
A42: DOPED0503 | B42: Non-residential low voltage demand tariff customers energy deliveries | C42: GWh | D42: ='[9]EB 3.4'!E40 -> 3455.626301
A43: DOPED0504 | B43: Non-residential high voltage demand tariff customers energy deliveries | C43: GWh | D43: ='[9]EB 3.4'!E41 -> 2760.947421
A44: DOPED0505 | B44: Other Customer Class Energy Deliveries | C44: GWh | D44: ='[9]EB 3.4'!E42 -> 0
B47: 3.4.2 - CUSTOMER NUMBERS
D48: Standard control services
D49: VOLUME (0's)
D50: =CRY -> 2018
B51: 3.4.2.1 - Distribution customer numbers by customer type or class
A52: DOPCN0101 | B52: Residential customer numbers | D52: ='[9]EB 3.4'!E50 -> 718023
A53: DOPCN0102 | B53: Non residential customers not on demand tariff customer numbers | D53: ='[9]EB 3.4'!E51 -> 98085
A54: DOPCN0103 | B54: Low voltage demand tariff customer numbers | D54: ='[9]EB 3.4'!E52 -> 10966
A55: DOPCN0104 | B55: High voltage demand tariff customer numbers | D55: ='[9]EB 3.4'!E53 -> 209
A56: DOPCN0105 | B56: Unmetered Customer Numbers | D56: ='[9]EB 3.4'!E54 -> 8498
A57: DOPCN0106 | B57: Other Customer Numbers | D57: ='[9]EB 3.4'!E55 -> 0
A58: DOPCN01 | B58: Total customer numbers | D58: =SUM(D52:D57) -> 835781
B60: 3.4.2.2 - Distribution customer numbers by location on the network
A61: DOPCN0201 | B61: Customers on CBD network | D61: ='[9]EB 3.4'!E59 -> 0
A62: DOPCN0202 | B62: Customers on Urban network | D62: ='[9]EB 3.4'!E60 -> 322455.3538
A63: DOPCN0203 | B63: Customers on Short rural network | D63: ='[9]EB 3.4'!E61 -> 297298.4874
A64: DOPCN0204 | B64: Customers on Long rural network | D64: ='[9]EB 3.4'!E62 -> 216027.1589
A65: DOPCN02 | B65: Total customer numbers | D65: =SUM(D61:D64) -> 835781
B67: 3.4.2.3 - Distribution customer numbers by TasNetworks (D) feeder categories (TasNetworks (D) only)
B68: Critical Infrastructure
B69: High Density Commercial
B70: Urban
B71: High Density Rural
B72: Low Density Rural
B73: Total customer numbers | D73: =SUM(D68:D72) -> 0
B75: 3.4.2.4 - Unmetered Supply TasNetworks (D) only)
A76: DOPCN0301 | B76: Number of unmetered connections reported in customer numbers in the economic benchmarking RIN
A77: DOPCN0302 | B77: Unmetered connections not reported in customer numbers in the economic benchmarking RIN
A78: DOPCN0303 | B78: Total unmetered connections
B81: 3.4.3 - SYSTEM DEMAND
D82: Standard control services
D83: VOLUME (0's)
C84: Units | D84: =CRY -> 2018
B85: 3.4.3.1 - Annual system maximum demand characteristics at the zone substation level – MW measure
A86: DOPSD0101 | B86: Non-coincident Summated Raw System Annual Maximum Demand | C86: MW | D86: ='[10]EB 3.4'!E84 -> 2631.592929
A87: DOPSD0102 | B87: Non–coincident Summated Weather Adjusted System Annual Maximum Demand 10% POE | C87: MW | D87: ='[10]EB 3.4'!E85 -> 2687.630016
A88: DOPSD0103 | B88: Non–coincident Summated Weather Adjusted System Annual Maximum Demand 50% POE | C88: MW | D88: ='[10]EB 3.4'!E86 -> 2412.72051
A89: DOPSD0104 | B89: Coincident Raw System Annual Maximum Demand | C89: MW | D89: ='[10]EB 3.4'!E87 -> 2183.557112
A90: DOPSD0105 | B90: Coincident Weather Adjusted System Annual Maximum Demand 10% POE | C90: MW | D90: ='[10]EB 3.4'!E88 -> 2230.053733
A91: DOPSD0106 | B91: Coincident Weather Adjusted System Annual Maximum Demand 50% POE | C91: MW | D91: ='[10]EB 3.4'!E89 -> 2001.948315
B93: 3.4.3.2 - Annual system maximum demand characteristics at the transmission connection point – MW measure
A94: DOPSD0107 | B94: Non-coincident Summated Raw System Annual Maximum Demand | C94: MW | D94: ='[10]EB 3.4'!E92 -> 2614.17022
A95: DOPSD0108 | B95: Non–coincident Summated Weather Adjusted System Annual Maximum Demand 10% POE | C95: MW | D95: ='[10]EB 3.4'!E93 -> 3036.341549
A96: DOPSD0109 | B96: Non–coincident Summated Weather Adjusted System Annual Maximum Demand 50% POE | C96: MW | D96: ='[10]EB 3.4'!E94 -> 2698.588101
A97: DOPSD0110 | B97: Coincident Raw System Annual Maximum Demand | C97: MW | D97: ='[10]EB 3.4'!E95 -> 2322.47116
A98: DOPSD0111 | B98: Coincident Weather Adjusted System Annual Maximum Demand 10% POE | C98: MW | D98: ='[10]EB 3.4'!E96 -> 2697.535006
A99: DOPSD0112 | B99: Coincident Weather Adjusted System Annual Maximum Demand 50% POE | C99: MW | D99: ='[10]EB 3.4'!E97 -> 2397.469373
B101: 3.4.3.3 - Annual system maximum demand characteristics at the zone substation level – MVA measure
A102: DOPSD0201 | B102: Non–coincident Summated Raw System Annual Maximum Demand | C102: MVA | D102: ='[10]EB 3.4'!E100 -> 2633.826251
A103: DOPSD0202 | B103: Non–coincident Summated Weather Adjusted System Annual Maximum Demand 10% POE | C103: MVA | D103: ='[10]EB 3.4'!E101 -> 2763.508926
A104: DOPSD0203 | B104: Non–coincident Summated Weather Adjusted System Annual Maximum Demand 50% POE | C104: MVA | D104: ='[10]EB 3.4'!E102 -> 2488.713317
A105: DOPSD0204 | B105: Coincident Raw System Annual Maximum Demand | C105: MVA | D105: ='[10]EB 3.4'!E103 -> 2241.929354
A106: DOPSD0205 | B106: Coincident Weather Adjusted System Annual Maximum Demand 10% POE | C106: MVA | D106: ='[10]EB 3.4'!E104 -> 2352.316057
A107: DOPSD0206 | B107: Coincident Weather Adjusted System Annual Maximum Demand 50% POE | C107: MVA | D107: ='[10]EB 3.4'!E105 -> 2118.408319
B109: 3.4.3.4 - Annual system maximum demand characteristics at the transmission connection point – MVA measure
A110: DOPSD0207 | B110: Non–coincident Summated Raw System Annual Maximum Demand | C110: MVA | D110: ='[10]EB 3.4'!E108 -> 2682.222394
A111: DOPSD0208 | B111: Non–coincident Summated Weather Adjusted System Annual Maximum Demand 10% POE | C111: MVA | D111: ='[10]EB 3.4'!E109 -> 3115.383703
A112: DOPSD0209 | B112: Non–coincident Summated Weather Adjusted System Annual Maximum Demand 50% POE | C112: MVA | D112: ='[10]EB 3.4'!E110 -> 2768.837845
A113: DOPSD0210 | B113: Coincident Raw System Annual Maximum Demand | C113: MVA | D113: ='[10]EB 3.4'!E111 -> 2379.404552
A114: DOPSD0211 | B114: Coincident Weather Adjusted System Annual Maximum Demand 10% POE | C114: MVA | D114: ='[10]EB 3.4'!E112 -> 2763.662767
A115: DOPSD0212 | B115: Coincident Weather Adjusted System Annual Maximum Demand 50% POE | C115: MVA | D115: ='[10]EB 3.4'!E113 -> 2456.241282
B117: 3.4.3.5 - Power factor conversion between MVA and MW
A118: DOPSD0301 | B118: Average overall network power factor conversion between MVA and MW | C118: Factor | D118: ='[10]EB 3.4'!E116 -> 0.9760724203
A119: DOPSD0302 | B119: Average power factor conversion for low voltage distribution lines | C119: Factor | D119: ='[10]EB 3.4'!E117 -> 0.85
A120: DOPSD0303 | B120: Average power factor conversion for 3.3 kV lines | C120: Factor | D120: ='[10]EB 3.4'!E118 -> 0
A121: DOPSD0304 | B121: Average power factor conversion for 6.6 kV lines | C121: Factor | D121: ='[10]EB 3.4'!E119 -> 0
A122: DOPSD0305 | B122: Average power factor conversion for 7.6 kV lines | C122: Factor | D122: ='[10]EB 3.4'!E120 -> 0
A123: DOPSD0306 | B123: Average power factor conversion for 11 kV lines | C123: Factor | D123: ='[10]EB 3.4'!E121 -> 0.9
A124: DOPSD0307 | B124: Average power factor conversion for SWER lines | C124: Factor | D124: ='[10]EB 3.4'!E122 -> 0.9
A125: DOPSD0308 | B125: Average power factor conversion for 22 kV lines | C125: Factor | D125: ='[10]EB 3.4'!E123 -> 0.9
A126: DOPSD0309 | B126: Average power factor conversion for 33 kV lines | C126: Factor | D126: ='[10]EB 3.4'!E124 -> 0
A127: DOPSD0310 | B127: Average power factor conversion for 44 kV lines | C127: Factor | D127: ='[10]EB 3.4'!E125 -> 0
A128: DOPSD0311 | B128: Average power factor conversion for 66 kV lines | C128: Factor | D128: ='[10]EB 3.4'!E126 -> 0.95
A129: DOPSD0312 | B129: Average power factor conversion for 110 kV lines | C129: Factor | D129: ='[10]EB 3.4'!E127 -> 0
A130: DOPSD0313 | B130: Average power factor conversion for 132 kV lines | C130: Factor | D130: ='[10]EB 3.4'!E128 -> 0
A131: DOPSD0314 | B131: Average power factor conversion for 220 kV lines | C131: Factor | D131: ='[10]EB 3.4'!E129 -> 0
B133: 3.4.3.6 - Demand supplied (for customers charged on this basis) – MW measure
A134: DOPSD0401 | B134: Summated Chargeable Contracted Maximum Demand | C134: MW | D134: ='[9]EB 3.4'!E132 -> 0
A135: DOPSD0402 | B135: Summated Chargeable Measured Maximum Demand | C135: MW | D135: ='[9]EB 3.4'!E133 -> 378.7462508
B137: 3.4.3.7 - Demand supplied (for customers charged on this basis) – MVA measure
A138: DOPSD0403 | B138: Summated Chargeable Contracted Maximum Demand | C138: MVA | D138: ='[9]EB 3.4'!E136 -> 0
A139: DOPSD0404 | B139: Summated Chargeable Measured Maximum Demand | C139: MVA | D139: ='[9]EB 3.4'!E137 -> 1564.527654

Sheet 3.5 Physical assets
B1: REGULATORY REPORTING STATEMENT
B2: =dms_TradingName -> Powercor Australia
B3: =CONCATENATE("Benchmarking RIN response ",CRY) -> Benchmarking RIN response 2018
B4: 3.5 PHYSICAL ASSETS
B6: There are THREE tables on this worksheet. Each table has been grouped (and sub-grouped) for ease of navigation. See the Instructions sheet on how to group or ungroup tables.
B8: 3.5.1 - NETWORK CAPACITIES
C9: VOLUME in KM's (0's)
C10: =CRY -> 2018
B11: Circuit length (kilometers)
B12: 3.5.1.1 - Overhead network length of circuit at each voltage
A13: DPA0101 | B13: Overhead low voltage distribution | C13: ='[11]EB 3.5'!D10 -> 9557.0613
A14: DPA0102 | B14: Overhead 2.2 kV | C14: ='[11]EB 3.5'!D11 -> 0
A15: DPA0103 | B15: Overhead 6.6kv | C15: ='[11]EB 3.5'!D12 -> 0
A16: DPA0104 | B16: Overhead 7.6 kV | C16: ='[11]EB 3.5'!D13 -> 0
A17: DPA0105 | B17: Overhead 11 kV | C17: ='[11]EB 3.5'!D14 -> 54.8635
A18: DPA0106 | B18: Overhead SWER | C18: ='[11]EB 3.5'!D15 -> 21386.27855
A19: DPA0107 | B19: Overhead 22 kV | C19: ='[11]EB 3.5'!D16 -> 34544.23301
A20: DPA0108 | B20: Overhead 33 kV | C20: ='[11]EB 3.5'!D17 -> 0
A21: DPA0109 | B21: Overhead 44 kV | C21: ='[11]EB 3.5'!D18 -> 0
A22: DPA0110 | B22: Overhead 66 kV | C22: ='[11]EB 3.5'!D19 -> 3186.36526
A23: DPA0111 | B23: Overhead 110kV | C23: ='[11]EB 3.5'!D20 -> 0
A24: DPA0112 | B24: Overhead 132 kV | C24: ='[11]EB 3.5'!D21 -> 0
A25: DPA0113 | B25: Overhead 220kV | C25: ='[11]EB 3.5'!D22 -> 0
A26: DPA0114 | B26: Other | C26: ='[11]EB 3.5'!D23 -> 0
A27: DPA01 | B27: Total overhead circuit km | C27: =SUM(C9:C26) -> 68728.80162
B28: 3.5.1.2 - Underground network circuit length at each voltage
A29: DPA0201 | B29: Underground low voltage distribution | C29: ='[11]EB 3.5'!D26 -> 4410.83659
A30: DPA0202 | B30: Underground 5 kV | C30: ='[11]EB 3.5'!D27 -> 0
A31: DPA0203 | B31: Underground 6.6 Kv | C31: ='[11]EB 3.5'!D28 -> 0
A32: DPA0204 | B32: Underground 7.6 kV | C32: ='[11]EB 3.5'!D29 -> 0
A33: DPA0205 | B33: Underground 11 kV | C33: ='[11]EB 3.5'!D30 -> 17.599761
A34: DPA0206 | B34: Underground SWER | C34: ='[11]EB 3.5'!D31 -> 312.16236
A35: DPA0207 | B35: Underground 22 kV | C35: ='[11]EB 3.5'!D32 -> 1939.270125
A36: DPA0208 | B36: Underground 33 kV | C36: ='[11]EB 3.5'!D33 -> 0
A37: DPA0209 | B37: Underground 66 kV | C37: ='[11]EB 3.5'!D34 -> 3.498501
A38: DPA0210 | B38: Underground 110 kV | C38: ='[11]EB 3.5'!D35 -> 0
A39: DPA0211 | B39: Underground 132 kV | C39: ='[11]EB 3.5'!D36 -> 0
A40: DPA0212 | B40: Other | C40: ='[11]EB 3.5'!D37 -> 0
A41: DPA02 | B41: Total underground circuit km | C41: =SUM(C29:C40) -> 6683.367337
C42: VOLUME in MVA (0's)
B43: Circuit Capacity (MVA) | C43: =CRY -> 2018
B44: 3.5.1.3 - Estimated overhead network weighted average MVA capacity by voltage class
A45: DPA0301 | B45: Overhead low voltage distribution | C45: ='[12]EB 3.5'!D42 -> 0.2
A46: DPA0302 | B46: Overhead 6.6 kV | C46: ='[12]EB 3.5'!D43 -> 0
A47: DPA0303 | B47: Overhead 7.6 kV | C47: ='[12]EB 3.5'!D44 -> 0
A48: DPA0304 | B48: Overhead 11 kV | C48: ='[12]EB 3.5'!D45 -> 4
A49: DPA0305 | B49: Overhead SWER | C49: ='[12]EB 3.5'!D46 -> 0.08
A50: DPA0306 | B50: Overhead 22 kV | C50: ='[12]EB 3.5'!D47 -> 8
A51: DPA0307 | B51: Overhead 33 kV | C51: ='[12]EB 3.5'!D48 -> 0
A52: DPA0308 | B52: Overhead 44 kV | C52: ='[12]EB 3.5'!D49 -> 0
A53: DPA0309 | B53: Overhead 66 kV | C53: ='[12]EB 3.5'!D50 -> 50
A54: DPA0310 | B54: Overhead 110 kV | C54: ='[12]EB 3.5'!D51 -> 0
A55: DPA0311 | B55: Overhead 132 kV | C55: ='[12]EB 3.5'!D52 -> 0
A56: DPA0312 | B56: Overhead 220 kV | C56: ='[12]EB 3.5'!D53 -> 0
A57: DPA0313 | B57: Other | C57: ='[12]EB 3.5'!D54 -> 0
B58: 3.5.1.4 - Estimated underground network weighted average MVA capacity by voltage class
A59: DPA0401 | B59: Underground low voltage distribution | C59: ='[12]EB 3.5'!D56 -> 0.2
A60: DPA0402 | B60: Underground 5 kV | C60: ='[12]EB 3.5'!D57 -> 0
A61: DPA0403 | B61: Underground 6.6 kV | C61: ='[12]EB 3.5'!D58 -> 0
A62: DPA0404 | B62: Underground 7.6 kV | C62: ='[12]EB 3.5'!D59 -> 0
A63: DPA0405 | B63: Underground 11 kV | C63: ='[12]EB 3.5'!D60 -> 4
A64: DPA0406 | B64: Underground SWER | C64: ='[12]EB 3.5'!D61 -> 0.08
A65: DPA0407 | B65: Underground 12.7 kV | C65: ='[12]EB 3.5'!D62 -> 0
A66: DPA0408 | B66: Underground 22 kV | C66: ='[12]EB 3.5'!D63 -> 8
A67: DPA0409 | B67: Underground 33 kV | C67: ='[12]EB 3.5'!D64 -> 0
A68: DPA0410 | B68: Underground 66 kV | C68: ='[12]EB 3.5'!D65 -> 60
A69: DPA0411 | B69: Underground 110 kV | C69: ='[12]EB 3.5'!D66 -> 0
A70: DPA0412 | B70: Underground 132 kV | C70: ='[12]EB 3.5'!D67 -> 0
A71: DPA0413 | B71: Other | C71: ='[12]EB 3.5'!D68 -> 0
B75: 3.5.2 - TRANSFORMER CAPACITIES
C76: VOLUME in MVA (0's)
C77: =CRY -> 2018
B78: 3.5.2.1 - Distribution transformer total installed capacity
A79: DPA0501 | B79: Distribution transformer capacity owned by utility | C79: ='[11]EB 3.5'!$D$76 -> 7518.749
A80: DPA0502 | B80: Distribution transformer capacity owned by High Voltage Customers | C80: ='[12]EB 3.5'!D77 -> 579.506192
A81: DPA0503 | B81: Cold spare capacity included in DPA0501 | C81: ='[11]EB 3.5'!$D$78 -> 97.749
B82: 3.5.2.2 - Zone substation transformer capacity
A83: DPA0601 | B83: Total installed capacity for first step transformation where there are two steps to reach distribution voltage | C83: ='[11]EB 3.5'!D80 -> 0
A84: DPA0602 | B84: Total installed capacity for second step transformation where there are two steps to reach distribution voltage | C84: ='[11]EB 3.5'!D81 -> 0
A85: DPA0603 | B85: Total zone substation transformer capacity where there is only a single step transformation to reach distribution voltage | C85: ='[11]EB 3.5'!D82 -> 3367
A86: DPA0604 | B86: Total zone substation transformer capacity | C86: ='[11]EB 3.5'!D83 -> 3446
A87: DPA0605 | B87: Cold spare capacity of zone substation transformers included in DPA0604 | C87: ='[11]EB 3.5'!D84 -> 79
B88: 3.5.2.3 - Distribution - other transformer capacity
B89: Distribution other - transformer capacity owned by utility
B93: 3.5.3 - PUBLIC LIGHTING
C94: VOLUME (0's)
C95: =CRY -> 2018
A96: DPA0701 | B96: Public lighting luminaires | C96: ='[13]EB 3.5'!D93 -> 174507.4
A97: DPA0702 | B97: Public lighting poles | C97: ='[13]EB 3.5'!D94 -> 87728
A98: DPA0703 | B98: Public lighting columns

Sheet 3.6 Quality of service
B1: REGULATORY REPORTING STATEMENT
B2: =dms_TradingName -> Powercor Australia
B3: =CONCATENATE("Benchmarking RIN response ",CRY) -> Benchmarking RIN response 2018
B4: 3.6 QUALITY OF SERVICE DATA
B7: 3.6.1 - RELIABILITY
D8: (0's)
C9: Units | D9: =CRY -> 2018
B10: INCLUSIVE OF MEDs
A11: DQS0101 | B11: Whole of network unplanned SAIDI | C11: minutes/customer | D11: ='[14]EB 3.6'!E10 -> 169.9388686
A12: DQS0102 | B12: Whole of network unplanned SAIDI excluding excluded outages | C12: minutes/customer | D12: ='[14]EB 3.6'!E11 -> 166.6321483
A13: DQS0103 | B13: Whole of network unplanned SAIFI | C13: interruptions/customer | D13: ='[14]EB 3.6'!E12 -> 1.426089142
A14: DQS0104 | B14: Whole of network unplanned SAIFI excluding excluded outages | C14: interruptions/customer | D14: ='[14]EB 3.6'!E13 -> 1.373374695
B15: EXCLUSIVE OF MEDs
A16: DQS0105 | B16: Whole of network unplanned SAIDI | C16: minutes/customer | D16: ='[14]EB 3.6'!E15 -> 137.9710273
A17: DQS0106 | B17: Whole of network unplanned SAIDI excluding excluded outages | C17: minutes/customer | D17: ='[14]EB 3.6'!E16 -> 134.664307
A18: DQS0107 | B18: Whole of network unplanned SAIFI | C18: interruptions/customer | D18: ='[14]EB 3.6'!E17 -> 1.33051618
A19: DQS0108 | B19: Whole of network unplanned SAIFI excluding excluded outages | C19: interruptions/customer | D19: ='[14]EB 3.6'!E18 -> 1.277801733
B21: 3.6.2 - ENERGY NOT SUPPLIED
D22: (0's)
C23: Units | D23: =CRY -> 2018
A24: DQS0201 | B24: Energy Not Supplied (planned) | C24: GWh | D24: ='[14]EB 3.6'!E23 -> 1.348073
A25: DQS0202 | B25: Energy Not Supplied (unplanned) | C25: GWh | D25: ='[14]EB 3.6'!E24 -> 2.862258
A26: DQS02 | B26: Total | D26: =SUM(D24:D25) -> 4.210331
B28: 3.6.3 - SYSTEM LOSSES
D29: (0's)
C30: Unit | D30: =CRY -> 2018
A31: DQS03 | B31: System losses | C31: % | D31: ='[15]EB 3.6'!$E$30 -> 0.05639146878
B33: 3.6.4 - CAPACITY UTILISATION
D34: (0's)
C35: Unit | D35: =CRY -> 2018
A36: DQS04 | B36: Overall utilisation | C36: % | D36: ='[15]EB 3.6'!$E$35 -> 0.7080432072

Sheet 3.7 Operating environment
B1: REGULATORY REPORTING STATEMENT
B2: =dms_TradingName -> Powercor Australia
B3: =CONCATENATE("Benchmarking RIN response ",CRY) -> Benchmarking RIN response 2018
B4: 3.7 OPERATING ENVIRONMENT FACTORS
B7: 3.7.1 - DENSITY FACTORS
D8: (0's)
C9: Units | D9: =CRY -> 2018
A10: DOEF0101 | B10: Customer density | C10: Customer / km | D10: ='[16]EB 3.7'!E9 -> 12.26787675
A11: DOEF0102 | B11: Energy density | C11: MWh/customer | D11: ='[16]EB 3.7'!E10 -> 12.86581054
A12: DOEF0103 | B12: Demand density | C12: kVA / customer | D12: ='[16]EB 3.7'!E11 -> 3.151543287
B14: 3.7.2 - TERRAIN FACTORS
D15: (0's)
D16: =CRY -> 2018
A17: DOEF0201 | B17: Rural proportion | C17: % | D17: ='[17]EB 3.7'!$E$16 -> 0.9247908711
A18: DOEF0202 | B18: Urban and CBD vegetation maintenance spans | C18: Number of spans | D18: ='[18]EB 3.7'!E17 -> 8696
A19: DOEF0203 | B19: Rural vegetation maintenance spans | C19: Number of spans | D19: ='[18]EB 3.7'!E18 -> 65176
A20: DOEF0204 | B20: Total vegetation maintenance spans | C20: Number of spans | D20: ='[18]EB 3.7'!E19 -> 73872
A21: DOEF0205 | B21: Total number of spans | C21: Number of spans | D21: ='[18]EB 3.7'!E20 -> 506791
A22: DOEF0206 | B22: Average urban and CBD vegetation maintenance span cycle | C22: Years | D22: ='[18]EB 3.7'!E21 -> 2.057267709
A23: DOEF0207 | B23: Average rural vegetation maintenance span cycle | C23: Years | D23: ='[18]EB 3.7'!E22 -> 2.365610041
A24: DOEF0208 | B24: Average number of trees per urban and CBD vegetation maintenance span | C24: Trees | D24: ='[18]EB 3.7'!E23 -> 1.163178473
A25: DOEF0209 | B25: Average number of trees per rural vegetation maintenance span | C25: Trees | D25: ='[18]EB 3.7'!E24 -> 5.613247208
A26: DOEF0210 | B26: Average number of defects per urban and CBD vegetation maintenance span | C26: Defects | D26: ='[18]EB 3.7'!E25 -> 0.9754403819
A27: DOEF0211 | B27: Average number of defects per rural vegetation maintenance span | C27: Defects | D27: ='[18]EB 3.7'!E26 -> 0.9932609937
A28: DOEF0212 | B28: Tropical proportion | C28: Spans
A29: DOEF0213 | B29: Standard vehicle access | C29: km | D29: ='[17]EB 3.7'!E28 -> 4372
A30: DOEF0214 | B30: Bushfire risk | C30: Spans | D30: ='[17]EB 3.7'!E29 -> 281014
B32: 3.7.3 - SERVICE AREA FACTORS
D33: (0's)
D34: =CRY -> 2018
A35: DOEF0301 | B35: Route Line length | C35: km | D35: ='[17]EB 3.7'!$E$34 -> 68127.63289

Sheet NSP amendments
B1: =CONCATENATE(dms_TradingName," data amendments") -> Powercor Australia data amendments
B2: Amended Table | C2: Comments
